Workbook

Sheet CM10-31-2015_OI_10_1_MPBW_65_US
H2: DayCount | I2: 180
A5: Symbol | B5: Shares | C5: Purchase Date | D5: Purchase Price | E5: Sell Date | F5: Sell Price | G5: Exposure | H5: Beta | I5: BetaMonths | J5: SharpeRatio | K5: RiskAdjustedWeight | L5: RiskAdjustedAllocation | M5: TargetBetaOverBeta | N5: Market Value | O5: Gain Loss | P5: Gain Loss(%) | R5: Validation | S5: Training | T5: Validation | U5: Training
A6: ICPT | B6: 12 | C6: 2019-12-31 | D6: 123.92 | E6: 2020-03-31 | F6: 62.96 | G6: 1487.04 | H6: 0.6444 | I6: 6 | J6: 0.0122 | K6: 0.157 | L6: 1312.508 | M6: 1.552 | N6: 755.52 | O6: -731.52 | P6: -0.4919 | S6: 1 | T6: =IF(R6=1,CHAR(34)&A6&CHAR(34)&","&CHAR(34)&TEXT(C6,"mm/dd/yyyy")&CHAR(34),"") ->  | U6: =IF(S6=1,InsertEntry(A6,TEXT(C6,"mm/dd/yyyy"),$I$2),"") -> testCases.Add(new TestCase("ICPT",DateTime.Parse("12/31/2019"),180,TestCase.CaseType.Training,TestCase.GenerateType.BollingerBand));
A7: CWH | B7: 74 | C7: 2020-01-31 | D7: 15.57 | E7: 2020-04-30 | F7: 8.87 | G7: 1152.18 | H7: 3.2103 | I7: 6 | J7: 0.0586 | K7: 0.14 | L7: 1153.824 | M7: 0.311 | N7: 656.38 | O7: -495.8 | P7: -0.4303 | R7: 1 | T7: =IF(R7=1,CHAR(34)&A7&CHAR(34)&","&CHAR(34)&TEXT(C7,"mm/dd/yyyy")&CHAR(34),"") -> "CWH","01/31/2020" | U7: =IF(S7=1,InsertEntry(A7,TEXT(C7,"mm/dd/yyyy"),$I$2),"") -> 
A8: AMD | B8: 41 | C8: 2018-09-28 | D8: 30.89 | E8: 2018-12-31 | F8: 18.46 | G8: 1266.49 | H8: 4.8929 | I8: 6 | J8: 0.2952 | K8: 0.022 | L8: 171.879 | M8: 0.204 | N8: 756.86 | O8: -509.63 | P8: -0.4024 | S8: 1 | U8: =IF(S8=1,InsertEntry(A8,TEXT(C8,"mm/dd/yyyy"),$I$2),"") -> testCases.Add(new TestCase("AMD",DateTime.Parse("09/28/2018"),180,TestCase.CaseType.Training,TestCase.GenerateType.BollingerBand));
A9: DISCA | B9: 23 | C9: 2021-02-26 | D9: 53.03 | E9: 2021-05-28 | F9: 32.11 | G9: 1219.69 | H9: 1.3232 | I9: 6 | J9: 0.2524 | K9: 0.067 | L9: 716.096 | M9: 0.756 | N9: 738.53 | O9: -481.16 | P9: -0.3945 | R9: 1 | T9: "DISCA","02/26/2021" | U9: =IF(S9=1,InsertEntry(A9,TEXT(C9,"mm/dd/yyyy"),$I$2),"") -> 
A10: AVAV | B10: 12 | C10: 2018-09-28 | D10: 112.17 | E10: 2018-12-31 | F10: 67.95 | G10: 1346.04 | H10: 2.1347 | I10: 6 | J10: 0.2758 | K10: 0.05 | L10: 393.963 | M10: 0.468 | N10: 815.4 | O10: -530.64 | P10: -0.3942 | S10: 1 | U10: =IF(S10=1,InsertEntry(A10,TEXT(C10,"mm/dd/yyyy"),$I$2),"") -> testCases.Add(new TestCase("AVAV",DateTime.Parse("09/28/2018"),180,TestCase.CaseType.Training,TestCase.GenerateType.BollingerBand));
A11: ANAB | B11: 8 | C11: 2018-02-28 | D11: 122.76 | E11: 2018-05-31 | F11: 77.8 | G11: 982.08 | H11: 3.9598 | I11: 6 | J11: 0.6909 | K11: 0.155 | L11: 1057.718 | M11: 0.253 | N11: 622.4 | O11: -359.68 | P11: -0.3662 | R11: 1 | T11: "ANAB","02/28/2018" | U11: =IF(S11=1,InsertEntry(A11,TEXT(C11,"mm/dd/yyyy"),$I$2),"") -> 
A12: ULH | B12: 63 | C12: 2018-08-31 | D12: 36.6 | E12: 2018-11-30 | F12: 23.37 | G12: 2305.8 | H12: 1.3452 | I12: 6 | J12: 0.5292 | K12: 0.305 | L12: 2332.886 | M12: 0.743 | N12: 1472.31 | O12: -833.49 | P12: -0.3615 | S12: 1 | U12: =IF(S12=1,InsertEntry(A12,TEXT(C12,"mm/dd/yyyy"),$I$2),"") -> testCases.Add(new TestCase("ULH",DateTime.Parse("08/31/2018"),180,TestCase.CaseType.Training,TestCase.GenerateType.BollingerBand));
A13: SPWR | B13: 158 | C13: 2017-07-31 | D13: 11.14 | E13: 2017-10-31 | F13: 7.12 | G13: 1760.12 | H13: 7.1612 | I13: 6 | J13: -0.1913 | K13: 0.309 | L13: 1763.337 | M13: 0.14 | N13: 1124.96 | O13: -635.16 | P13: -0.3609 | R13: 1 | T13: "SPWR","07/31/2017" | U13: =IF(S13=1,InsertEntry(A13,TEXT(C13,"mm/dd/yyyy"),$I$2),"") -> 
A14: ETE | B14: 895 | C14: 2019-04-30 | D14: 1.95 | E14: 2019-07-31 | F14: 1.25 | G14: 1745.25 | H14: 3.3502 | I14: 6 | J14: -0.1558 | K14: 0.238 | L14: 1746.918 | M14: 0.298 | N14: 1118.75 | O14: -626.5 | P14: -0.359 | S14: 1 | U14: =IF(S14=1,InsertEntry(A14,TEXT(C14,"mm/dd/yyyy"),$I$2),"") -> testCases.Add(new TestCase("ETE",DateTime.Parse("04/30/2019"),180,TestCase.CaseType.Training,TestCase.GenerateType.BollingerBand));
A15: DNLI | B15: 65 | C15: 2020-12-31 | D15: 83.76 | E15: 2021-03-31 | F15: 57.1 | G15: 5444.4 | H15: 0.6113 | I15: 6 | J15: 0.6047 | K15: 0.548 | L15: 5482.346 | M15: 1.636 | N15: 3711.5 | O15: -1732.9 | P15: -0.3183 | R15: 1 | T15: "DNLI","12/31/2020" | U15: =IF(S15=1,InsertEntry(A15,TEXT(C15,"mm/dd/yyyy"),$I$2),"") -> 
A16: ADT | B16: 371 | C16: 2019-11-29 | D16: 9.24 | E16: 2020-02-28 | F16: 6.39 | G16: 3428.04 | H16: 1.2479 | I16: 6 | J16: -0.0024 | K16: 0.435 | L16: 3429.813 | M16: 0.801 | N16: 2370.69 | O16: -1057.35 | P16: -0.3084 | S16: 1 | U16: =IF(S16=1,InsertEntry(A16,TEXT(C16,"mm/dd/yyyy"),$I$2),"") -> testCases.Add(new TestCase("ADT",DateTime.Parse("11/29/2019"),180,TestCase.CaseType.Training,TestCase.GenerateType.BollingerBand));
A17: IDTI | B17: 20 | C17: 2015-11-30 | D17: 28.04 | E17: 2016-02-29 | F17: 19.42 | G17: 560.8 | H17: 0.5432 | I17: 6 | J17: 0.3241 | K17: 0.016 | L17: 55.215 | M17: 1.841 | N17: 388.4 | O17: -172.4 | P17: -0.3074 | R17: 1 | T17: "IDTI","11/30/2015" | U17: =IF(S17=1,InsertEntry(A17,TEXT(C17,"mm/dd/yyyy"),$I$2),"") -> 
A18: VC | B18: 12 | C18: 2019-11-29 | D18: 93.53 | E18: 2020-02-28 | F18: 65.04 | G18: 1122.36 | H18: 3.6275 | I18: 6 | J18: 0.0548 | K18: 0.15 | L18: 1179.868 | M18: 0.276 | N18: 780.48 | O18: -341.88 | P18: -0.3046 | S18: 1 | U18: =IF(S18=1,InsertEntry(A18,TEXT(C18,"mm/dd/yyyy"),$I$2),"") -> testCases.Add(new TestCase("VC",DateTime.Parse("11/29/2019"),180,TestCase.CaseType.Training,TestCase.GenerateType.BollingerBand));
A19: VIVO | B19: 122 | C19: 2020-07-31 | D19: 24.49 | E19: 2020-10-30 | F19: 17.15 | G19: 2987.78 | H19: 1.576 | I19: 6 | J19: 0.329 | K19: 0.43 | L19: 2997.173 | M19: 0.635 | N19: 2092.3 | O19: -895.48 | P19: -0.2997 | S19: 1 | U19: =IF(S19=1,InsertEntry(A19,TEXT(C19,"mm/dd/yyyy"),$I$2),"") -> testCases.Add(new TestCase("VIVO",DateTime.Parse("07/31/2020"),180,TestCase.CaseType.Training,TestCase.GenerateType.BollingerBand));
A20: AKS | B20: 28 | C20: 2016-12-30 | D20: 10.21 | E20: 2017-03-31 | F20: 7.19 | G20: 285.88 | H20: 3.2894 | I20: 6 | J20: 0.4773 | K20: 0.06 | L20: 285.935 | M20: 0.304 | N20: 201.32 | O20: -84.56 | P20: -0.2958 | S20: 1 | U20: =IF(S20=1,InsertEntry(A20,TEXT(C20,"mm/dd/yyyy"),$I$2),"") -> testCases.Add(new TestCase("AKS",DateTime.Parse("12/30/2016"),180,TestCase.CaseType.Training,TestCase.GenerateType.BollingerBand));
A21: PRO | B21: 16 | C21: 2019-07-31 | D21: 72.36 | E21: 2019-10-31 | F21: 51.24 | G21: 1157.76 | H21: 1.064 | I21: 6 | J21: 0.2678 | K21: 0.166 | L21: 1219.877 | M21: 0.94 | N21: 819.84 | O21: -337.92 | P21: -0.2919 | R21: 1 | S21: 1 | T21: "PRO","07/31/2019" | U21: =IF(S21=1,InsertEntry(A21,TEXT(C21,"mm/dd/yyyy"),$I$2),"") -> testCases.Add(new TestCase("PRO",DateTime.Parse("07/31/2019"),180,TestCase.CaseType.Training,TestCase.GenerateType.BollingerBand));
A22: RCKT | B22: 212 | C22: 2020-01-31 | D22: 20.48 | E22: 2020-04-30 | F22: 14.8 | G22: 4341.76 | H22: 0.8507 | I22: 6 | J22: 0.1996 | K22: 0.53 | L22: 4354.307 | M22: 1.176 | N22: 3137.6 | O22: -1204.16 | P22: -0.2773 | S22: 1 | U22: =IF(S22=1,InsertEntry(A22,TEXT(C22,"mm/dd/yyyy"),$I$2),"") -> testCases.Add(new TestCase("RCKT",DateTime.Parse("01/31/2020"),180,TestCase.CaseType.Training,TestCase.GenerateType.BollingerBand));
A23: ENPH | B23: 25 | C23: 2021-01-29 | D23: 182.35 | E23: 2021-04-30 | F23: 139.25 | G23: 4558.75 | H23: 1.218 | I23: 6 | J23: 0.717 | K23: 0.42 | L23: 4577.874 | M23: 0.821 | N23: 3481.25 | O23: -1077.5 | P23: -0.2364 | S23: 1 | U23: =IF(S23=1,InsertEntry(A23,TEXT(C23,"mm/dd/yyyy"),$I$2),"") -> testCases.Add(new TestCase("ENPH",DateTime.Parse("01/29/2021"),180,TestCase.CaseType.Training,TestCase.GenerateType.BollingerBand));
A24: ACLS | B24: 22 | C24: 2017-11-30 | D24: 32 | E24: 2018-02-28 | F24: 24.45 | G24: 704 | H24: 8.2647 | I24: 6 | J24: 0.5606 | K24: 0.111 | L24: 706.745 | M24: 0.121 | N24: 537.9 | O24: -166.1 | P24: -0.2359 | R24: 1 | S24: 1 | T24: "ACLS","11/30/2017" | U24: =IF(S24=1,InsertEntry(A24,TEXT(C24,"mm/dd/yyyy"),$I$2),"") -> testCases.Add(new TestCase("ACLS",DateTime.Parse("11/30/2017"),180,TestCase.CaseType.Training,TestCase.GenerateType.BollingerBand));
A25: KURA | B25: 31 | C25: 2020-11-30 | D25: 36.3 | E25: 2021-02-26 | F25: 28 | G25: 1125.3 | H25: 1.7538 | I25: 6 | J25: 0.3541 | K25: 0.125 | L25: 1152.4 | M25: 0.57 | N25: 868 | O25: -257.3 | P25: -0.2287 | S25: 1 | U25: =IF(S25=1,InsertEntry(A25,TEXT(C25,"mm/dd/yyyy"),$I$2),"") -> testCases.Add(new TestCase("KURA",DateTime.Parse("11/30/2020"),180,TestCase.CaseType.Training,TestCase.GenerateType.BollingerBand));
A26: PTLA | B26: 33 | C26: 2019-03-29 | D26: 34.7 | E26: 2019-06-28 | F26: 27.13 | G26: 1145.1 | H26: 2.3397 | I26: 6 | J26: -0.0008 | K26: 0.158 | L26: 1160.386 | M26: 0.427 | N26: 895.29 | O26: -249.81 | P26: -0.2182 | S26: 1 | U26: =IF(S26=1,InsertEntry(A26,TEXT(C26,"mm/dd/yyyy"),$I$2),"") -> testCases.Add(new TestCase("PTLA",DateTime.Parse("03/29/2019"),180,TestCase.CaseType.Training,TestCase.GenerateType.BollingerBand));
A27: SSRI | B27: 89 | C27: 2016-07-29 | D27: 13.94 | E27: 2016-10-31 | F27: 10.96 | G27: 1240.66 | H27: 2.5735 | I27: 6 | J27: 0.3705 | K27: 0.307 | L27: 1247.156 | M27: 0.389 | N27: 975.44 | O27: -265.22 | P27: -0.2138 | S27: 1 | U27: =IF(S27=1,InsertEntry(A27,TEXT(C27,"mm/dd/yyyy"),$I$2),"") -> testCases.Add(new TestCase("SSRI",DateTime.Parse("07/29/2016"),180,TestCase.CaseType.Training,TestCase.GenerateType.BollingerBand));
A28: PUMP | B28: 64 | C28: 2017-12-29 | D28: 20.16 | E28: 2018-03-29 | F28: 15.89 | G28: 1290.24 | H28: 2.1434 | I28: 6 | J28: 0.2932 | K28: 0.172 | L28: 1115.21 | M28: 0.467 | N28: 1016.96 | O28: -273.28 | P28: -0.2118 | R28: 1 | S28: 1 | T28: "PUMP","12/29/2017" | U28: =IF(S28=1,InsertEntry(A28,TEXT(C28,"mm/dd/yyyy"),$I$2),"") -> testCases.Add(new TestCase("PUMP",DateTime.Parse("12/29/2017"),180,TestCase.CaseType.Training,TestCase.GenerateType.BollingerBand));
A29: CORE | B29: 148 | C29: 2018-09-28 | D29: 33.96 | E29: 2018-12-31 | F29: 26.82 | G29: 5026.08 | H29: 0.1156 | I29: 6 | J29: 0.0897 | K29: 0.928 | L29: 7276.485 | M29: 8.652 | N29: 3969.36 | O29: -1056.72 | P29: -0.2102 | S29: 1 | U29: =IF(S29=1,InsertEntry(A29,TEXT(C29,"mm/dd/yyyy"),$I$2),"") -> testCases.Add(new TestCase("CORE",DateTime.Parse("09/28/2018"),180,TestCase.CaseType.Training,TestCase.GenerateType.BollingerBand));
A30: OKTA | B30: 11 | C30: 2019-06-28 | D30: 123.51 | E30: 2019-09-30 | F30: 98.46 | G30: 1358.61 | H30: 1.455 | I30: 6 | J30: 0.2848 | K30: 0.176 | L30: 1343.721 | M30: 0.687 | N30: 1083.06 | O30: -275.55 | P30: -0.2028 | S30: 1 | U30: =IF(S30=1,InsertEntry(A30,TEXT(C30,"mm/dd/yyyy"),$I$2),"") -> testCases.Add(new TestCase("OKTA",DateTime.Parse("06/28/2019"),180,TestCase.CaseType.Training,TestCase.GenerateType.BollingerBand));
A31: CTMX | B31: 151 | C31: 2018-03-29 | D31: 28.45 | E31: 2018-06-29 | F31: 22.86 | G31: 4295.95 | H31: 0.0184 | I31: 6 | J31: 0.4193 | K31: 0.991 | L31: 6567.701 | M31: 54.402 | N31: 3451.86 | O31: -844.09 | P31: -0.1965 | S31: 1 | U31: =IF(S31=1,InsertEntry(A31,TEXT(C31,"mm/dd/yyyy"),$I$2),"") -> testCases.Add(new TestCase("CTMX",DateTime.Parse("03/29/2018"),180,TestCase.CaseType.Training,TestCase.GenerateType.BollingerBand));
A32: TDOC | B32: 53 | C32: 2018-08-31 | D32: 77.55 | E32: 2018-11-30 | F32: 62.45 | G32: 4110.15 | H32: 0.7531 | I32: 6 | J32: 0.447 | K32: 0.545 | L32: 4166.883 | M32: 1.328 | N32: 3309.85 | O32: -800.3 | P32: -0.1947 | R32: 1 | S32: 1 | T32: "TDOC","08/31/2018" | U32: =IF(S32=1,InsertEntry(A32,TEXT(C32,"mm/dd/yyyy"),$I$2),"") -> testCases.Add(new TestCase("TDOC",DateTime.Parse("08/31/2018"),180,TestCase.CaseType.Training,TestCase.GenerateType.BollingerBand));
A33: WRD | B33: 74 | C33: 2018-05-31 | D33: 26.86 | E33: 2018-08-31 | F33: 21.74 | G33: 1987.64 | H33: 0.9584 | I33: 6 | J33: 0.4085 | K33: 0.275 | L33: 1991.045 | M33: 1.043 | N33: 1608.76 | O33: -378.88 | P33: -0.1906 | S33: 1 | U33: =IF(S33=1,InsertEntry(A33,TEXT(C33,"mm/dd/yyyy"),$I$2),"") -> testCases.Add(new TestCase("WRD",DateTime.Parse("05/31/2018"),180,TestCase.CaseType.Training,TestCase.GenerateType.BollingerBand));
A34: FTCH | B34: 46 | C34: 2020-12-31 | D34: 63.81 | E34: 2021-03-31 | F34: 53.02 | G34: 2935.26 | H34: 1.1259 | I34: 6 | J34: 0.5949 | K34: 0.297 | L34: 2976.457 | M34: 0.888 | N34: 2438.92 | O34: -496.34 | P34: -0.1691 | S34: 1 | U34: =IF(S34=1,InsertEntry(A34,TEXT(C34,"mm/dd/yyyy"),$I$2),"") -> testCases.Add(new TestCase("FTCH",DateTime.Parse("12/31/2020"),180,TestCase.CaseType.Training,TestCase.GenerateType.BollingerBand));
A35: COKE | B35: 3 | C35: 2015-10-30 | D35: 211.21 | E35: 2016-01-29 | F35: 175.9 | G35: 633.63 | H35: 0.3363 | I35: 6 | J35: 0.7996 | K35: 0.1 | L35: 332.777 | M35: 2.974 | N35: 527.7 | O35: -105.93 | P35: -0.1672 | S35: 1 | U35: =IF(S35=1,InsertEntry(A35,TEXT(C35,"mm/dd/yyyy"),$I$2),"") -> testCases.Add(new TestCase("COKE",DateTime.Parse("10/30/2015"),180,TestCase.CaseType.Training,TestCase.GenerateType.BollingerBand));
A36: BEDU | B36: 18 | C36: 2017-10-31 | D36: 23.86 | E36: 2018-01-31 | F36: 20.06 | G36: 429.48 | H36: 14.9966 | I36: 6 | J36: 0.9993 | K36: 0.069 | L36: 446.598 | M36: 0.067 | N36: 361.08 | O36: -68.4 | P36: -0.1593 | S36: 1 | U36: =IF(S36=1,InsertEntry(A36,TEXT(C36,"mm/dd/yyyy"),$I$2),"") -> testCases.Add(new TestCase("BEDU",DateTime.Parse("10/31/2017"),180,TestCase.CaseType.Training,TestCase.GenerateType.BollingerBand));
A37: WIX | B37: 6 | C37: 2020-07-31 | D37: 290.48 | E37: 2020-10-30 | F37: 247.32 | G37: 1742.88 | H37: 2.4642 | I37: 6 | J37: 0.2913 | K37: 0.275 | L37: 1916.836 | M37: 0.406 | N37: 1483.92 | O37: -258.96 | P37: -0.1486 | S37: 1 | U37: =IF(S37=1,InsertEntry(A37,TEXT(C37,"mm/dd/yyyy"),$I$2),"") -> testCases.Add(new TestCase("WIX",DateTime.Parse("07/31/2020"),180,TestCase.CaseType.Training,TestCase.GenerateType.BollingerBand));
A38: ATHM | B38: 14 | C38: 2017-08-31 | D38: 64.27 | E38: 2017-11-30 | F38: 55.37 | G38: 899.78 | H38: 2.4274 | I38: 6 | J38: 0.5846 | K38: 0.072 | L38: 438.064 | M38: 0.412 | N38: 775.18 | O38: -124.6 | P38: -0.1385 | R38: 1 | S38: 1 | T38: "ATHM","08/31/2017" | U38: =IF(S38=1,InsertEntry(A38,TEXT(C38,"mm/dd/yyyy"),$I$2),"") -> testCases.Add(new TestCase("ATHM",DateTime.Parse("08/31/2017"),180,TestCase.CaseType.Training,TestCase.GenerateType.BollingerBand));
A39: CVRR | B39: 130 | C39: 2018-06-29 | D39: 22.35 | E39: 2018-09-28 | F39: 19.7 | G39: 2905.5 | H39: 3.1528 | I39: 6 | J39: 0.3695 | K39: 0.403 | L39: 2909.43 | M39: 0.317 | N39: 2561 | O39: -344.5 | P39: -0.1186 | S39: 1 | U39: =IF(S39=1,InsertEntry(A39,TEXT(C39,"mm/dd/yyyy"),$I$2),"") -> testCases.Add(new TestCase("CVRR",DateTime.Parse("06/29/2018"),180,TestCase.CaseType.Training,TestCase.GenerateType.BollingerBand));
A40: CVNA | B40: 35 | C40: 2019-04-30 | D40: 71.56 | E40: 2019-07-31 | F40: 63.56 | G40: 2504.6 | H40: 2.3356 | I40: 6 | J40: 0.3313 | K40: 0.341 | L40: 2505.76 | M40: 0.428 | N40: 2224.6 | O40: -280 | P40: -0.1118 | S40: 1 | U40: =IF(S40=1,InsertEntry(A40,TEXT(C40,"mm/dd/yyyy"),$I$2),"") -> testCases.Add(new TestCase("CVNA",DateTime.Parse("04/30/2019"),180,TestCase.CaseType.Training,TestCase.GenerateType.BollingerBand));
A41: AIMT | B41: 23 | C41: 2016-11-30 | D41: 22.7 | E41: 2017-02-28 | F41: 20.27 | G41: 522.1 | H41: 5.1855 | I41: 6 | J41: 0.0731 | K41: 0.113 | L41: 523.367 | M41: 0.193 | N41: 466.21 | O41: -55.89 | P41: -0.107 | U41: =IF(S41=1,InsertEntry(A41,TEXT(C41,"mm/dd/yyyy"),$I$2),"") -> 
A42: AVP | B42: 271 | C42: 2016-10-31 | D42: 6.55 | E42: 2017-01-31 | F42: 5.87 | G42: 1775.05 | H42: 2.8663 | I42: 6 | J42: 0.3188 | K42: 0.408 | L42: 1776.545 | M42: 0.349 | N42: 1590.77 | O42: -184.28 | P42: -0.1038 | U42: =IF(S42=1,InsertEntry(A42,TEXT(C42,"mm/dd/yyyy"),$I$2),"") -> 
A43: IRBT | B43: 20 | C43: 2020-06-30 | D43: 83.9 | E43: 2020-09-30 | F43: 75.9 | G43: 1678 | H43: 1.7002 | I43: 6 | J43: 0.0212 | K43: 0.243 | L43: 1693.451 | M43: 0.588 | N43: 1518 | O43: -160 | P43: -0.0954 | U43: =IF(S43=1,InsertEntry(A43,TEXT(C43,"mm/dd/yyyy"),$I$2),"") -> 
A44: CMPR | B44: 37 | C44: 2019-10-31 | D44: 132.12 | E44: 2020-01-31 | F44: 119.63 | G44: 4888.44 | H44: 0.3877 | I44: 6 | J44: -0.108 | K44: 0.747 | L44: 5922.486 | M44: 2.58 | N44: 4426.31 | O44: -462.13 | P44: -0.0945 | U44: =IF(S44=1,InsertEntry(A44,TEXT(C44,"mm/dd/yyyy"),$I$2),"") -> 
A45: PNK | B45: 29 | C45: 2017-12-29 | D45: 32.73 | E45: 2018-03-29 | F45: 30.15 | G45: 949.17 | H45: 2.9807 | I45: 6 | J45: 0.7857 | K45: 0.123 | L45: 801.94 | M45: 0.335 | N45: 874.35 | O45: -74.82 | P45: -0.0788 | U45: =IF(S45=1,InsertEntry(A45,TEXT(C45,"mm/dd/yyyy"),$I$2),"") -> 
A46: HL | B46: 183 | C46: 2016-07-29 | D46: 6.49 | E46: 2016-10-31 | F46: 5.99 | G46: 1187.67 | H46: 2.6983 | I46: 6 | J46: 0.4056 | K46: 0.293 | L46: 1189.462 | M46: 0.371 | N46: 1096.17 | O46: -91.5 | P46: -0.077 | U46: =IF(S46=1,InsertEntry(A46,TEXT(C46,"mm/dd/yyyy"),$I$2),"") -> 
A47: CAR | B47: 17 | C47: 2021-04-30 | D47: 89.61 | E47: 2021-07-30 | F47: 82.77 | G47: 1523.37 | H47: 2.4751 | I47: 6 | J47: 0.7146 | K47: 0.041 | L47: 427.167 | M47: 0.404 | N47: 1407.09 | O47: -116.28 | P47: -0.0763 | U47: =IF(S47=1,InsertEntry(A47,TEXT(C47,"mm/dd/yyyy"),$I$2),"") -> 
A48: EXTN | B48: 89 | C48: 2017-02-28 | D48: 30.44 | E48: 2017-05-31 | F48: 28.2 | G48: 2709.16 | H48: 2.0587 | I48: 6 | J48: 0.4282 | K48: 0.555 | L48: 2719.224 | M48: 0.486 | N48: 2509.8 | O48: -199.36 | P48: -0.0736 | U48: =IF(S48=1,InsertEntry(A48,TEXT(C48,"mm/dd/yyyy"),$I$2),"") -> 
A49: FMSA | B49: 611 | C49: 2017-11-30 | D49: 4.82 | E49: 2018-02-28 | F49: 4.48 | G49: 2945.02 | H49: 1.9823 | I49: 6 | J49: -0.1594 | K49: 0.462 | L49: 2946.573 | M49: 0.504 | N49: 2737.28 | O49: -207.74 | P49: -0.0705 | U49: =IF(S49=1,InsertEntry(A49,TEXT(C49,"mm/dd/yyyy"),$I$2),"") -> 
A50: MRTX | B50: 33 | C50: 2019-02-28 | D50: 72.8 | E50: 2019-05-31 | F50: 67.79 | G50: 2402.4 | H50: 0.442 | I50: 6 | J50: 0.3696 | K50: 0.334 | L50: 2451.139 | M50: 2.262 | N50: 2237.07 | O50: -165.33 | P50: -0.0688 | U50: =IF(S50=1,InsertEntry(A50,TEXT(C50,"mm/dd/yyyy"),$I$2),"") -> 
A51: NG | B51: 195 | C51: 2019-08-30 | D51: 7.44 | E51: 2019-11-29 | F51: 6.96 | G51: 1450.8 | H51: 0.7918 | I51: 6 | J51: 0.1786 | K51: 0.095 | L51: 702.059 | M51: 1.263 | N51: 1357.2 | O51: -93.6 | P51: -0.0645 | U51: =IF(S51=1,InsertEntry(A51,TEXT(C51,"mm/dd/yyyy"),$I$2),"") -> 
A52: KGC | B52: 244 | C52: 2016-05-31 | D52: 4.26 | E52: 2016-08-31 | F52: 3.99 | G52: 1039.44 | H52: 2.9397 | I52: 6 | J52: 0.3514 | K52: 0.32 | L52: 1039.729 | M52: 0.34 | N52: 973.56 | O52: -65.88 | P52: -0.0634 | U52: =IF(S52=1,InsertEntry(A52,TEXT(C52,"mm/dd/yyyy"),$I$2),"") -> 
A53: ZYME | B53: 75 | C53: 2019-11-29 | D53: 43.59 | E53: 2020-02-28 | F53: 40.93 | G53: 3269.25 | H53: 1.3065 | I53: 6 | J53: 0.6289 | K53: 0.415 | L53: 3275.806 | M53: 0.765 | N53: 3069.75 | O53: -199.5 | P53: -0.061 | U53: =IF(S53=1,InsertEntry(A53,TEXT(C53,"mm/dd/yyyy"),$I$2),"") -> 
A54: HTHT | B54: 9 | C54: 2017-08-31 | D54: 113.51 | E54: 2017-11-30 | F54: 106.71 | G54: 1021.59 | H54: 1.6214 | I54: 6 | J54: 0.7271 | K54: 0.108 | L54: 655.825 | M54: 0.617 | N54: 960.39 | O54: -61.2 | P54: -0.0599 | U54: =IF(S54=1,InsertEntry(A54,TEXT(C54,"mm/dd/yyyy"),$I$2),"") -> 
A55: DBEF | B55: 36 | C55: 2015-12-31 | D55: 27.16 | E55: 2016-03-31 | F55: 25.54 | G55: 977.76 | H55: 1.1073 | I55: 6 | J55: -0.0133 | K55: 1 | L55: 1000 | M55: 0.903 | N55: 919.44 | O55: -58.32 | P55: -0.0596 | U55: =IF(S55=1,InsertEntry(A55,TEXT(C55,"mm/dd/yyyy"),$I$2),"") -> 
A56: LGIH | B56: 56 | C56: 2017-12-29 | D56: 75.03 | E56: 2018-03-29 | F56: 70.57 | G56: 4201.68 | H56: 0.5221 | I56: 6 | J56: 0.5659 | K56: 0.705 | L56: 4578.06 | M56: 1.915 | N56: 3951.92 | O56: -249.76 | P56: -0.0594 | U56: =IF(S56=1,InsertEntry(A56,TEXT(C56,"mm/dd/yyyy"),$I$2),"") -> 
A57: SQM | B57: 50 | C57: 2017-10-31 | D57: 59.74 | E57: 2018-01-31 | F57: 56.38 | G57: 2987 | H57: 2.2113 | I57: 6 | J57: 0.5753 | K57: 0.471 | L57: 3028.726 | M57: 0.452 | N57: 2819 | O57: -168 | P57: -0.0562 | U57: =IF(S57=1,InsertEntry(A57,TEXT(C57,"mm/dd/yyyy"),$I$2),"") -> 
A58: KOD | B58: 27 | C58: 2020-11-30 | D58: 136.67 | E58: 2021-02-26 | F58: 129.01 | G58: 3690.09 | H58: 0.5431 | I58: 6 | J58: 0.4307 | K58: 0.404 | L58: 3721.584 | M58: 1.841 | N58: 3483.27 | O58: -206.82 | P58: -0.056 | U58: =IF(S58=1,InsertEntry(A58,TEXT(C58,"mm/dd/yyyy"),$I$2),"") -> 
A59: CHGG | B59: 81 | C59: 2019-02-28 | D59: 39.63 | E59: 2019-05-31 | F59: 37.46 | G59: 3210.03 | H59: 0.3341 | I59: 6 | J59: 0.3661 | K59: 0.442 | L59: 3242.895 | M59: 2.993 | N59: 3034.26 | O59: -175.77 | P59: -0.0548 | U59: =IF(S59=1,InsertEntry(A59,TEXT(C59,"mm/dd/yyyy"),$I$2),"") -> 
A60: WNC | B60: 44 | C60: 2017-02-28 | D60: 21.15 | E60: 2017-05-31 | F60: 19.99 | G60: 930.6 | H60: 6.0116 | I60: 6 | J60: 0.3932 | K60: 0.19 | L60: 931.197 | M60: 0.166 | N60: 879.56 | O60: -51.04 | P60: -0.0548 | U60: =IF(S60=1,InsertEntry(A60,TEXT(C60,"mm/dd/yyyy"),$I$2),"") -> 
A61: PAH | B61: 94 | C61: 2017-02-28 | D61: 13.19 | E61: 2017-05-31 | F61: 12.48 | G61: 1239.86 | H61: 4.4685 | I61: 6 | J61: 0.3185 | K61: 0.256 | L61: 1252.776 | M61: 0.224 | N61: 1173.12 | O61: -66.74 | P61: -0.0538 | U61: =IF(S61=1,InsertEntry(A61,TEXT(C61,"mm/dd/yyyy"),$I$2),"") -> 
A62: HFC | B62: 60 | C62: 2018-05-31 | D62: 77.18 | E62: 2018-08-31 | F62: 74.52 | G62: 4630.8 | H62: 0.4115 | I62: 6 | J62: 0.4759 | K62: 0.64 | L62: 4637.925 | M62: 2.43 | N62: 4471.2 | O62: -159.6 | P62: -0.0345 | U62: =IF(S62=1,InsertEntry(A62,TEXT(C62,"mm/dd/yyyy"),$I$2),"") -> 
A63: COOP | B63: 133 | C63: 2019-10-31 | D63: 12.8 | E63: 2020-01-31 | F63: 12.38 | G63: 1702.4 | H63: 1.7873 | I63: 6 | J63: -0.2363 | K63: 0.162 | L63: 1284.543 | M63: 0.56 | N63: 1646.54 | O63: -55.86 | P63: -0.0328 | U63: =IF(S63=1,InsertEntry(A63,TEXT(C63,"mm/dd/yyyy"),$I$2),"") -> 
A64: PJC | B64: 19 | C64: 2016-11-30 | D64: 72.95 | E64: 2017-02-28 | F64: 70.75 | G64: 1386.05 | H64: 1.9071 | I64: 6 | J64: 0.2731 | K64: 0.307 | L64: 1423.031 | M64: 0.524 | N64: 1344.25 | O64: -41.8 | P64: -0.0302 | U64: =IF(S64=1,InsertEntry(A64,TEXT(C64,"mm/dd/yyyy"),$I$2),"") -> 
A65: WTI | B65: 89 | C65: 2018-05-31 | D65: 6.85 | E65: 2018-08-31 | F65: 6.77 | G65: 609.65 | H65: 3.1129 | I65: 6 | J65: 0.3937 | K65: 0.085 | L65: 613.036 | M65: 0.321 | N65: 602.53 | O65: -7.12 | P65: -0.0117 | U65: =IF(S65=1,InsertEntry(A65,TEXT(C65,"mm/dd/yyyy"),$I$2),"") -> 
A66: NVDA | B66: 68 | C66: 2015-11-30 | D66: 31.72 | E66: 2016-02-29 | F66: 31.36 | G66: 2156.96 | H66: 0.009 | I66: 6 | J66: 0.3836 | K66: 0.973 | L66: 3319.579 | M66: 110.676 | N66: 2132.48 | O66: -24.48 | P66: -0.0113 | U66: =IF(S66=1,InsertEntry(A66,TEXT(C66,"mm/dd/yyyy"),$I$2),"") -> 
A67: AG | B67: 439 | C67: 2019-08-30 | D67: 10.88 | E67: 2019-11-29 | F67: 10.76 | G67: 4776.32 | H67: 0.0884 | I67: 6 | J67: 0.1605 | K67: 0.854 | L67: 6289.686 | M67: 11.315 | N67: 4723.64 | O67: -52.68 | P67: -0.011 | U67: =IF(S67=1,InsertEntry(A67,TEXT(C67,"mm/dd/yyyy"),$I$2),"") -> 
A68: AAAP | B68: 36 | C68: 2017-10-31 | D68: 81 | E68: 2018-01-31 | F68: 80.42 | G68: 2916 | H68: 2.268 | I68: 6 | J68: 0.2818 | K68: 0.459 | L68: 2953.022 | M68: 0.441 | N68: 2895.12 | O68: -20.88 | P68: -0.0072 | U68: =IF(S68=1,InsertEntry(A68,TEXT(C68,"mm/dd/yyyy"),$I$2),"") -> 
A69: SAIA | B69: 11 | C69: 2019-09-30 | D69: 93.7 | E69: 2019-12-31 | F69: 93.12 | G69: 1030.7 | H69: 1.3888 | I69: 6 | J69: -0.0727 | K69: 0.142 | L69: 1072.459 | M69: 0.72 | N69: 1024.32 | O69: -6.38 | P69: -0.0062 | U69: =IF(S69=1,InsertEntry(A69,TEXT(C69,"mm/dd/yyyy"),$I$2),"") -> 
A70: FMI | B70: 29 | C70: 2017-04-28 | D70: 35.5 | E70: 2017-07-31 | F70: 35.35 | G70: 1029.5 | H70: 1.2807 | I70: 6 | J70: 0.3088 | K70: 0.122 | L70: 626.978 | M70: 0.781 | N70: 1025.15 | O70: -4.35 | P70: -0.0042 | U70: =IF(S70=1,InsertEntry(A70,TEXT(C70,"mm/dd/yyyy"),$I$2),"") -> 
A71: VLRS | B71: 28 | C71: 2015-10-30 | D71: 16.99 | E71: 2016-01-29 | F71: 16.94 | G71: 475.72 | H71: 1.8709 | I71: 6 | J71: 0.6185 | K71: 0.018 | L71: 59.812 | M71: 0.535 | N71: 474.32 | O71: -1.4 | P71: -0.0029 | T71: =IF(R71=1,CHAR(34)&A71&CHAR(34)&","&CHAR(34)&TEXT(C71,"mm/dd/yyyy")&CHAR(34),"") ->  | U71: =IF(S71=1,InsertEntry(A71,TEXT(C71,"mm/dd/yyyy"),$I$2),"") -> 
A72: BIL | B72: 10 | C72: 2018-11-30 | D72: 91.61 | E72: 2019-02-28 | F72: 91.61 | G72: 916.1 | H72: 0.007 | I72: 6 | J72: -151.0342 | K72: 1 | L72: 1000 | M72: 143.248 | N72: 916.1 | O72: 0 | P72: 0 | U72: =IF(S72=1,InsertEntry(A72,TEXT(C72,"mm/dd/yyyy"),$I$2),"") -> 
A73: SBGL | B73: 137 | C73: 2019-12-31 | D73: 9.93 | E73: 2020-03-31 | F73: 9.93 | G73: 1360.41 | H73: 0.7785 | I73: 6 | J73: 0.7527 | K73: 0.13 | L73: 1086.394 | M73: 1.284 | N73: 1360.41 | O73: 0 | P73: 0 | U73: =IF(S73=1,InsertEntry(A73,TEXT(C73,"mm/dd/yyyy"),$I$2),"") -> 
A74: BIL | B74: 10 | C74: 2018-10-31 | D74: 91.59 | E74: 2019-01-31 | F74: 91.62 | G74: 915.9 | H74: 0.0019 | I74: 6 | J74: -159.3998 | K74: 1 | L74: 1000 | M74: 525.737 | N74: 916.2 | O74: 0.3 | P74: 0.0003 | U74: =IF(S74=1,InsertEntry(A74,TEXT(C74,"mm/dd/yyyy"),$I$2),"") -> 
A75: BIL | B75: 10 | C75: 2016-01-29 | D75: 91.38 | E75: 2016-04-29 | F75: 91.42 | G75: 913.8 | H75: 0.01 | I75: 6 | J75: -13.3432 | K75: 1 | L75: 1000 | M75: 100 | N75: 914.2 | O75: 0.4 | P75: 0.0004 | U75: =IF(S75=1,InsertEntry(A75,TEXT(C75,"mm/dd/yyyy"),$I$2),"") -> 
A76: KPTI | B76: 280 | C76: 2019-12-31 | D76: 19.17 | E76: 2020-03-31 | F76: 19.21 | G76: 5367.6 | H76: 0.1422 | I76: 6 | J76: 0.2169 | K76: 0.713 | L76: 5946.338 | M76: 7.031 | N76: 5378.8 | O76: 11.2 | P76: 0.0021 | U76: =IF(S76=1,InsertEntry(A76,TEXT(C76,"mm/dd/yyyy"),$I$2),"") -> 
A77: SHV | B77: 9 | C77: 2018-12-31 | D77: 110.3 | E77: 2019-03-29 | F77: 110.57 | G77: 992.7 | H77: 0.01 | I77: 6 | J77: -117.5594 | K77: 1 | L77: 1000 | M77: 100 | N77: 995.13 | O77: 2.43 | P77: 0.0024 | U77: =IF(S77=1,InsertEntry(A77,TEXT(C77,"mm/dd/yyyy"),$I$2),"") -> 
A78: BGS | B78: 57 | C78: 2015-10-30 | D78: 36.29 | E78: 2016-01-29 | F78: 36.42 | G78: 2068.53 | H78: 0.0381 | I78: 6 | J78: 0.3656 | K78: 0.882 | L78: 2940.744 | M78: 26.28 | N78: 2075.94 | O78: 7.41 | P78: 0.0036 | U78: =IF(S78=1,InsertEntry(A78,TEXT(C78,"mm/dd/yyyy"),$I$2),"") -> 
A79: AGG | B79: 9 | C79: 2016-02-29 | D79: 110.09 | E79: 2016-05-31 | F79: 110.7 | G79: 990.81 | H79: 0.0208 | I79: 6 | J79: -0.6487 | K79: 1 | L79: 1000 | M79: 48.168 | N79: 996.3 | O79: 5.49 | P79: 0.0055 | U79: =IF(S79=1,InsertEntry(A79,TEXT(C79,"mm/dd/yyyy"),$I$2),"") -> 
A80: APPF | B80: 89 | C80: 2017-08-31 | D80: 42.9 | E80: 2017-11-30 | F80: 43.15 | G80: 3818.1 | H80: 0.2143 | I80: 6 | J80: 0.927 | K80: 0.819 | L80: 4962.681 | M80: 4.667 | N80: 3840.35 | O80: 22.25 | P80: 0.0058 | U80: =IF(S80=1,InsertEntry(A80,TEXT(C80,"mm/dd/yyyy"),$I$2),"") -> 
A81: WLL | B81: 19 | C81: 2018-06-29 | D81: 52.72 | E81: 2018-09-28 | F81: 53.04 | G81: 1001.68 | H81: 8.9721 | I81: 6 | J81: 0.3409 | K81: 0.142 | L81: 1022.37 | M81: 0.111 | N81: 1007.76 | O81: 6.08 | P81: 0.0061 | U81: =IF(S81=1,InsertEntry(A81,TEXT(C81,"mm/dd/yyyy"),$I$2),"") -> 
A82: AGG | B82: 9 | C82: 2019-01-31 | D82: 107.46 | E82: 2019-04-30 | F82: 108.59 | G82: 967.14 | H82: 0.1004 | I82: 6 | J82: -2.9571 | K82: 1 | L82: 1000 | M82: 9.957 | N82: 977.31 | O82: 10.17 | P82: 0.0105 | U82: =IF(S82=1,InsertEntry(A82,TEXT(C82,"mm/dd/yyyy"),$I$2),"") -> 
A83: RF | B83: 101 | C83: 2016-12-30 | D83: 14.36 | E83: 2017-03-31 | F83: 14.53 | G83: 1450.36 | H83: 0.6471 | I83: 6 | J83: 0.2158 | K83: 0.306 | L83: 1453.507 | M83: 1.545 | N83: 1467.53 | O83: 17.17 | P83: 0.0118 | U83: =IF(S83=1,InsertEntry(A83,TEXT(C83,"mm/dd/yyyy"),$I$2),"") -> 
A84: AGG | B84: 8 | C84: 2020-02-28 | D84: 116.22 | E84: 2020-05-29 | F84: 117.65 | G84: 929.76 | H84: 0.01 | I84: 6 | J84: -1.1163 | K84: 1 | L84: 1000 | M84: 100 | N84: 941.2 | O84: 11.44 | P84: 0.0123 | U84: =IF(S84=1,InsertEntry(A84,TEXT(C84,"mm/dd/yyyy"),$I$2),"") -> 
A85: DBEF | B85: 32 | C85: 2019-05-31 | D85: 30.78 | E85: 2019-08-30 | F85: 31.19 | G85: 984.96 | H85: 0.8803 | I85: 6 | J85: -0.5177 | K85: 1 | L85: 1000 | M85: 1.136 | N85: 998.08 | O85: 13.12 | P85: 0.0133 | U85: =IF(S85=1,InsertEntry(A85,TEXT(C85,"mm/dd/yyyy"),$I$2),"") -> 
A86: W | B86: 9 | C86: 2018-07-31 | D86: 108.82 | E86: 2018-10-31 | F86: 110.29 | G86: 979.38 | H86: 4.5434 | I86: 6 | J86: 0.1734 | K86: 0.129 | L86: 1009.119 | M86: 0.22 | N86: 992.61 | O86: 13.23 | P86: 0.0135 | U86: =IF(S86=1,InsertEntry(A86,TEXT(C86,"mm/dd/yyyy"),$I$2),"") -> 
A87: KTB | B87: 104 | C87: 2020-11-30 | D87: 41.67 | E87: 2021-02-26 | F87: 42.25 | G87: 4333.68 | H87: 0.465 | I87: 6 | J87: 0.105 | K87: 0.471 | L87: 4346.585 | M87: 2.151 | N87: 4394 | O87: 60.32 | P87: 0.0139 | U87: =IF(S87=1,InsertEntry(A87,TEXT(C87,"mm/dd/yyyy"),$I$2),"") -> 
A88: NVCR | B88: 12 | C88: 2019-08-30 | D88: 90.86 | E88: 2019-11-29 | F88: 92.18 | G88: 1090.32 | H88: 1.4811 | I88: 6 | J88: 0.3427 | K88: 0.051 | L88: 375.308 | M88: 0.675 | N88: 1106.16 | O88: 15.84 | P88: 0.0145 | U88: =IF(S88=1,InsertEntry(A88,TEXT(C88,"mm/dd/yyyy"),$I$2),"") -> 
A89: AGG | B89: 8 | C89: 2020-04-30 | D89: 117.1 | E89: 2020-07-31 | F89: 119.56 | G89: 936.8 | H89: 0.01 | I89: 6 | J89: 0.4081 | K89: 1 | L89: 1000 | M89: 100 | N89: 956.48 | O89: 19.68 | P89: 0.021 | U89: =IF(S89=1,InsertEntry(A89,TEXT(C89,"mm/dd/yyyy"),$I$2),"") -> 
A90: GDS | B90: 55 | C90: 2018-01-31 | D90: 28.54 | E90: 2018-04-30 | F90: 29.17 | G90: 1569.7 | H90: 5.6193 | I90: 6 | J90: 0.5181 | K90: 0.247 | L90: 1584.12 | M90: 0.178 | N90: 1604.35 | O90: 34.65 | P90: 0.0221 | U90: =IF(S90=1,InsertEntry(A90,TEXT(C90,"mm/dd/yyyy"),$I$2),"") -> 
A91: AGG | B91: 8 | C91: 2020-03-31 | D91: 115.37 | E91: 2020-06-30 | F91: 118.21 | G91: 922.96 | H91: 0.01 | I91: 6 | J91: -0.4823 | K91: 1 | L91: 1000 | M91: 100 | N91: 945.68 | O91: 22.72 | P91: 0.0246 | U91: =IF(S91=1,InsertEntry(A91,TEXT(C91,"mm/dd/yyyy"),$I$2),"") -> 
A92: BOLD | B92: 81 | C92: 2019-04-30 | D92: 37.79 | E92: 2019-07-31 | F92: 38.92 | G92: 3060.99 | H92: 1.8924 | I92: 6 | J92: 0.0632 | K92: 0.421 | L92: 3092.599 | M92: 0.528 | N92: 3152.52 | O92: 91.53 | P92: 0.0299 | U92: =IF(S92=1,InsertEntry(A92,TEXT(C92,"mm/dd/yyyy"),$I$2),"") -> 
A93: GOOS | B93: 49 | C93: 2018-01-31 | D93: 35.94 | E93: 2018-04-30 | F93: 37.08 | G93: 1761.06 | H93: 5.044 | I93: 6 | J93: 0.6906 | K93: 0.275 | L93: 1764.799 | M93: 0.198 | N93: 1816.92 | O93: 55.86 | P93: 0.0317 | U93: =IF(S93=1,InsertEntry(A93,TEXT(C93,"mm/dd/yyyy"),$I$2),"") -> 
A94: FDX | B94: 15 | C94: 2020-09-30 | D94: 251.52 | E94: 2020-12-31 | F94: 259.62 | G94: 3772.8 | H94: 0.7924 | I94: 6 | J94: 0.2777 | K94: 0.465 | L94: 4019.669 | M94: 1.262 | N94: 3894.3 | O94: 121.5 | P94: 0.0322 | U94: =IF(S94=1,InsertEntry(A94,TEXT(C94,"mm/dd/yyyy"),$I$2),"") -> 
A95: FCAU | B95: 281 | C95: 2017-01-31 | D95: 10.99 | E95: 2017-04-28 | F95: 11.37 | G95: 3088.19 | H95: 0.1615 | I95: 6 | J95: 0.056 | K95: 0.943 | L95: 4507.184 | M95: 6.193 | N95: 3194.97 | O95: 106.78 | P95: 0.0346 | U95: =IF(S95=1,InsertEntry(A95,TEXT(C95,"mm/dd/yyyy"),$I$2),"") -> 
A96: GOL | B96: 84 | C96: 2017-09-29 | D96: 8.46 | E96: 2017-12-29 | F96: 8.76 | G96: 710.64 | H96: 7.9568 | I96: 6 | J96: 0.286 | K96: 0.049 | L96: 315.988 | M96: 0.126 | N96: 735.84 | O96: 25.2 | P96: 0.0355 | U96: =IF(S96=1,InsertEntry(A96,TEXT(C96,"mm/dd/yyyy"),$I$2),"") -> 
A97: SHOP | B97: 3 | C97: 2019-06-28 | D97: 300.15 | E97: 2019-09-30 | F97: 311.66 | G97: 900.45 | H97: 1.9021 | I97: 6 | J97: 0.2641 | K97: 0.135 | L97: 1027.863 | M97: 0.526 | N97: 934.98 | O97: 34.53 | P97: 0.0383 | U97: =IF(S97=1,InsertEntry(A97,TEXT(C97,"mm/dd/yyyy"),$I$2),"") -> 
A98: OCLR | B98: 270 | C98: 2016-09-30 | D98: 8.55 | E98: 2016-12-30 | F98: 8.95 | G98: 2308.5 | H98: 6.1295 | I98: 6 | J98: 0.5916 | K98: 0.528 | L98: 2315.496 | M98: 0.163 | N98: 2416.5 | O98: 108 | P98: 0.0468 | U98: =IF(S98=1,InsertEntry(A98,TEXT(C98,"mm/dd/yyyy"),$I$2),"") -> 
A99: UIS | B99: 283 | C99: 2021-02-26 | D99: 24.55 | E99: 2021-05-28 | F99: 25.71 | G99: 6947.65 | H99: 0.1171 | I99: 6 | J99: 0.4237 | K99: 0.752 | L99: 8093.561 | M99: 8.542 | N99: 7275.93 | O99: 328.28 | P99: 0.0473 | U99: =IF(S99=1,InsertEntry(A99,TEXT(C99,"mm/dd/yyyy"),$I$2),"") -> 
A100: YRD | B100: 98 | C100: 2017-09-29 | D100: 41.94 | E100: 2017-12-29 | F100: 43.97 | G100: 4110.12 | H100: 0.5044 | I100: 6 | J100: 0.4148 | K100: 0.776 | L100: 4984.288 | M100: 1.982 | N100: 4309.06 | O100: 198.94 | P100: 0.0484 | U100: =IF(S100=1,InsertEntry(A100,TEXT(C100,"mm/dd/yyyy"),$I$2),"") -> 
A101: TCBI | B101: 38 | C101: 2016-12-30 | D101: 78.4 | E101: 2017-03-31 | F101: 83.45 | G101: 2979.2 | H101: 0.3122 | I101: 6 | J101: 0.1621 | K101: 0.634 | L101: 3012.825 | M101: 3.203 | N101: 3171.1 | O101: 191.9 | P101: 0.0644 | U101: =IF(S101=1,InsertEntry(A101,TEXT(C101,"mm/dd/yyyy"),$I$2),"") -> 
A102: LOB | B102: 51 | C102: 2020-10-30 | D102: 37.28 | E102: 2021-01-29 | F102: 39.88 | G102: 1901.28 | H102: 1.7627 | I102: 6 | J102: 0.2617 | K102: 0.224 | L102: 1900.566 | M102: 0.567 | N102: 2033.88 | O102: 132.6 | P102: 0.0697 | U102: =IF(S102=1,InsertEntry(A102,TEXT(C102,"mm/dd/yyyy"),$I$2),"") -> 
A103: WB | B103: 33 | C103: 2016-08-31 | D103: 47.77 | E103: 2016-11-30 | F103: 51.31 | G103: 1576.41 | H103: 3.76 | I103: 6 | J103: 0.4785 | K103: 0.383 | L103: 1613.188 | M103: 0.266 | N103: 1693.23 | O103: 116.82 | P103: 0.0741 | U103: =IF(S103=1,InsertEntry(A103,TEXT(C103,"mm/dd/yyyy"),$I$2),"") -> 
A104: FNSR | B104: 49 | C104: 2016-10-31 | D104: 27.38 | E104: 2017-01-31 | F104: 29.57 | G104: 1341.62 | H104: 3.7212 | I104: 6 | J104: 0.6721 | K104: 0.314 | L104: 1368.409 | M104: 0.269 | N104: 1448.93 | O104: 107.31 | P104: 0.08 | U104: =IF(S104=1,InsertEntry(A104,TEXT(C104,"mm/dd/yyyy"),$I$2),"") -> 
A105: ARVN | B105: 55 | C105: 2020-01-31 | D105: 48.46 | E105: 2020-04-30 | F105: 52.5 | G105: 2665.3 | H105: 1.3671 | I105: 6 | J105: 0.4159 | K105: 0.33 | L105: 2709.529 | M105: 0.731 | N105: 2887.5 | O105: 222.2 | P105: 0.0834 | U105: =IF(S105=1,InsertEntry(A105,TEXT(C105,"mm/dd/yyyy"),$I$2),"") -> 
A106: CPG | B106: 781 | C106: 2021-03-31 | D106: 4.17 | E106: 2021-06-30 | F106: 4.53 | G106: 3256.77 | H106: 3.0269 | I106: 6 | J106: 0.3009 | K106: 0.35 | L106: 3259.697 | M106: 0.33 | N106: 3537.93 | O106: 281.16 | P106: 0.0863 | U106: =IF(S106=1,InsertEntry(A106,TEXT(C106,"mm/dd/yyyy"),$I$2),"") -> 
A107: SGMO | B107: 100 | C107: 2017-09-29 | D107: 15 | E107: 2017-12-29 | F107: 16.4 | G107: 1500 | H107: 2.2401 | I107: 6 | J107: 0.4617 | K107: 0.175 | L107: 1122.394 | M107: 0.446 | N107: 1640 | O107: 140 | P107: 0.0933 | U107: =IF(S107=1,InsertEntry(A107,TEXT(C107,"mm/dd/yyyy"),$I$2),"") -> 
A108: TROX | B108: 135 | C108: 2016-09-30 | D108: 9.37 | E108: 2016-12-30 | F108: 10.31 | G108: 1264.95 | H108: 11.1424 | I108: 6 | J108: 0.1944 | K108: 0.29 | L108: 1273.777 | M108: 0.09 | N108: 1391.85 | O108: 126.9 | P108: 0.1003 | U108: =IF(S108=1,InsertEntry(A108,TEXT(C108,"mm/dd/yyyy"),$I$2),"") -> 
A109: CDE | B109: 68 | C109: 2016-06-30 | D109: 10.66 | E109: 2016-09-30 | F109: 11.83 | G109: 724.88 | H109: 8.3713 | I109: 6 | J109: 0.1995 | K109: 0.195 | L109: 728.298 | M109: 0.119 | N109: 804.44 | O109: 79.56 | P109: 0.1098 | U109: =IF(S109=1,InsertEntry(A109,TEXT(C109,"mm/dd/yyyy"),$I$2),"") -> 
A110: FSLR | B110: 49 | C110: 2017-07-31 | D110: 49.31 | E110: 2017-10-31 | F110: 54.82 | G110: 2416.19 | H110: 5.185 | I110: 6 | J110: -0.0793 | K110: 0.427 | L110: 2435.423 | M110: 0.193 | N110: 2686.18 | O110: 269.99 | P110: 0.1117 | U110: =IF(S110=1,InsertEntry(A110,TEXT(C110,"mm/dd/yyyy"),$I$2),"") -> 
A111: BGNE | B111: 6 | C111: 2018-04-30 | D111: 169.58 | E111: 2018-07-31 | F111: 189.66 | G111: 1017.48 | H111: 2.0561 | I111: 6 | J111: 0.6718 | K111: 0.129 | L111: 897.899 | M111: 0.486 | N111: 1137.96 | O111: 120.48 | P111: 0.1184 | U111: =IF(S111=1,InsertEntry(A111,TEXT(C111,"mm/dd/yyyy"),$I$2),"") -> 
A112: ENBL | B112: 124 | C112: 2016-06-30 | D112: 13.51 | E112: 2016-09-30 | F112: 15.25 | G112: 1675.24 | H112: 3.6142 | I112: 6 | J112: 0.03 | K112: 0.452 | L112: 1686.884 | M112: 0.277 | N112: 1891 | O112: 215.76 | P112: 0.1288 | U112: =IF(S112=1,InsertEntry(A112,TEXT(C112,"mm/dd/yyyy"),$I$2),"") -> 
A113: LITE | B113: 35 | C113: 2016-10-31 | D113: 33.6 | E113: 2017-01-31 | F113: 37.95 | G113: 1176 | H113: 4.2208 | I113: 6 | J113: 0.5675 | K113: 0.277 | L113: 1206.449 | M113: 0.237 | N113: 1328.25 | O113: 152.25 | P113: 0.1295 | U113: =IF(S113=1,InsertEntry(A113,TEXT(C113,"mm/dd/yyyy"),$I$2),"") -> 
A114: GSHD | B114: 74 | C114: 2019-07-31 | D114: 45.01 | E114: 2019-10-31 | F114: 51.18 | G114: 3330.74 | H114: 0.3883 | I114: 6 | J114: 0.3062 | K114: 0.454 | L114: 3342.541 | M114: 2.575 | N114: 3787.32 | O114: 456.58 | P114: 0.1371 | U114: =IF(S114=1,InsertEntry(A114,TEXT(C114,"mm/dd/yyyy"),$I$2),"") -> 
A115: MTCH | B115: 72 | C115: 2017-06-30 | D115: 29.48 | E115: 2017-09-29 | F115: 33.58 | G115: 2122.56 | H115: 0.6998 | I115: 6 | J115: 0.6357 | K115: 0.389 | L115: 2142.847 | M115: 1.429 | N115: 2417.76 | O115: 295.2 | P115: 0.1391 | U115: =IF(S115=1,InsertEntry(A115,TEXT(C115,"mm/dd/yyyy"),$I$2),"") -> 
A116: IAC | B116: 95 | C116: 2017-06-30 | D116: 22.49 | E116: 2017-09-29 | F116: 25.62 | G116: 2136.55 | H116: 0.6971 | I116: 6 | J116: 0.6365 | K116: 0.391 | L116: 2151.029 | M116: 1.434 | N116: 2433.9 | O116: 297.35 | P116: 0.1392 | U116: =IF(S116=1,InsertEntry(A116,TEXT(C116,"mm/dd/yyyy"),$I$2),"") -> 
A117: CLR | B117: 19 | C117: 2016-05-31 | D117: 42.06 | E117: 2016-08-31 | F117: 47.96 | G117: 799.14 | H117: 3.6552 | I117: 6 | J117: -0.0429 | K117: 0.257 | L117: 836.203 | M117: 0.274 | N117: 911.24 | O117: 112.1 | P117: 0.1403 | U117: =IF(S117=1,InsertEntry(A117,TEXT(C117,"mm/dd/yyyy"),$I$2),"") -> 
A118: RPD | B118: 29 | C118: 2019-03-29 | D118: 50.61 | E118: 2019-06-28 | F118: 57.84 | G118: 1467.69 | H118: 1.8282 | I118: 6 | J118: 0.2332 | K118: 0.202 | L118: 1485.058 | M118: 0.547 | N118: 1677.36 | O118: 209.67 | P118: 0.1429 | U118: =IF(S118=1,InsertEntry(A118,TEXT(C118,"mm/dd/yyyy"),$I$2),"") -> 
A119: BAK | B119: 104 | C119: 2021-04-30 | D119: 19.36 | E119: 2021-07-30 | F119: 22.18 | G119: 2013.44 | H119: 1.316 | I119: 6 | J119: 0.5255 | K119: 0.077 | L119: 803.422 | M119: 0.76 | N119: 2306.72 | O119: 293.28 | P119: 0.1457 | U119: =IF(S119=1,InsertEntry(A119,TEXT(C119,"mm/dd/yyyy"),$I$2),"") -> 
A120: RH | B120: 5 | C120: 2019-10-31 | D120: 181.7 | E120: 2020-01-31 | F120: 208.75 | G120: 908.5 | H120: 3.1801 | I120: 6 | J120: 0.1247 | K120: 0.091 | L120: 721.937 | M120: 0.314 | N120: 1043.75 | O120: 135.25 | P120: 0.1489 | U120: =IF(S120=1,InsertEntry(A120,TEXT(C120,"mm/dd/yyyy"),$I$2),"") -> 
A121: NEM | B121: 31 | C121: 2020-05-29 | D121: 58.47 | E121: 2020-08-31 | F121: 67.28 | G121: 1812.57 | H121: 0.2857 | I121: 6 | J121: 0.6283 | K121: 0.264 | L121: 1833.396 | M121: 3.5 | N121: 2085.68 | O121: 273.11 | P121: 0.1507 | U121: =IF(S121=1,InsertEntry(A121,TEXT(C121,"mm/dd/yyyy"),$I$2),"") -> 
A122: FIZZ | B122: 8 | C122: 2017-04-28 | D122: 88.59 | E122: 2017-07-31 | F122: 102.12 | G122: 708.72 | H122: 2.5241 | I122: 6 | J122: 0.388 | K122: 0.062 | L122: 318.135 | M122: 0.396 | N122: 816.96 | O122: 108.24 | P122: 0.1527 | S122: 1 | U122: =IF(S122=1,InsertEntry(A122,TEXT(C122,"mm/dd/yyyy"),$I$2),"") -> testCases.Add(new TestCase("FIZZ",DateTime.Parse("04/28/2017"),180,TestCase.CaseType.Training,TestCase.GenerateType.BollingerBand));
A123: AUY | B123: 132 | C123: 2016-04-29 | D123: 4.95 | E123: 2016-07-29 | F123: 5.71 | G123: 653.4 | H123: 3.8246 | I123: 6 | J123: 0.0138 | K123: 0.201 | L123: 655.02 | M123: 0.261 | N123: 753.72 | O123: 100.32 | P123: 0.1535 | S123: 1 | U123: =IF(S123=1,InsertEntry(A123,TEXT(C123,"mm/dd/yyyy"),$I$2),"") -> testCases.Add(new TestCase("AUY",DateTime.Parse("04/29/2016"),180,TestCase.CaseType.Training,TestCase.GenerateType.BollingerBand));
A124: EXEL | B124: 176 | C124: 2016-07-29 | D124: 9.18 | E124: 2016-10-31 | F124: 10.59 | G124: 1615.68 | H124: 1.9779 | I124: 6 | J124: 0.3648 | K124: 0.4 | L124: 1622.682 | M124: 0.506 | N124: 1863.84 | O124: 248.16 | P124: 0.1536 | S124: 1 | U124: =IF(S124=1,InsertEntry(A124,TEXT(C124,"mm/dd/yyyy"),$I$2),"") -> testCases.Add(new TestCase("EXEL",DateTime.Parse("07/29/2016"),180,TestCase.CaseType.Training,TestCase.GenerateType.BollingerBand));
A125: GGB | B125: 293 | C125: 2016-09-30 | D125: 2.72 | E125: 2016-12-30 | F125: 3.14 | G125: 796.96 | H125: 17.7786 | I125: 6 | J125: 0.2524 | K125: 0.182 | L125: 798.317 | M125: 0.056 | N125: 920.02 | O125: 123.06 | P125: 0.1544 | S125: 1 | U125: =IF(S125=1,InsertEntry(A125,TEXT(C125,"mm/dd/yyyy"),$I$2),"") -> testCases.Add(new TestCase("GGB",DateTime.Parse("09/30/2016"),180,TestCase.CaseType.Training,TestCase.GenerateType.BollingerBand));
A126: IMPUY | B126: 1112 | C126: 2019-03-29 | D126: 4.22 | E126: 2019-06-28 | F126: 4.88 | G126: 4692.64 | H126: 0.5781 | I126: 6 | J126: 0.1583 | K126: 0.64 | L126: 4696.442 | M126: 1.73 | N126: 5426.56 | O126: 733.92 | P126: 0.1564 | S126: 1 | U126: =IF(S126=1,InsertEntry(A126,TEXT(C126,"mm/dd/yyyy"),$I$2),"") -> testCases.Add(new TestCase("IMPUY",DateTime.Parse("03/29/2019"),180,TestCase.CaseType.Training,TestCase.GenerateType.BollingerBand));
A127: MOMO | B127: 86 | C127: 2017-04-28 | D127: 37.98 | E127: 2017-07-31 | F127: 43.93 | G127: 3266.28 | H127: 0.1911 | I127: 6 | J127: 0.4309 | K127: 0.816 | L127: 4202.245 | M127: 5.233 | N127: 3777.98 | O127: 511.7 | P127: 0.1567 | S127: 1 | U127: =IF(S127=1,InsertEntry(A127,TEXT(C127,"mm/dd/yyyy"),$I$2),"") -> testCases.Add(new TestCase("MOMO",DateTime.Parse("04/28/2017"),180,TestCase.CaseType.Training,TestCase.GenerateType.BollingerBand));
A128: EIDX | B128: 154 | C128: 2019-06-28 | D128: 31.08 | E128: 2019-09-30 | F128: 35.97 | G128: 4786.32 | H128: 0.3715 | I128: 6 | J128: 0.1789 | K128: 0.689 | L128: 5262.753 | M128: 2.692 | N128: 5539.38 | O128: 753.06 | P128: 0.1573 | S128: 1 | U128: =IF(S128=1,InsertEntry(A128,TEXT(C128,"mm/dd/yyyy"),$I$2),"") -> testCases.Add(new TestCase("EIDX",DateTime.Parse("06/28/2019"),180,TestCase.CaseType.Training,TestCase.GenerateType.BollingerBand));
A129: ASND | B129: 28 | C129: 2018-02-28 | D129: 62.19 | E129: 2018-05-31 | F129: 72.02 | G129: 1741.32 | H129: 2.3778 | I129: 6 | J129: 0.4216 | K129: 0.258 | L129: 1761.459 | M129: 0.421 | N129: 2016.56 | O129: 275.24 | P129: 0.1581 | S129: 1 | U129: =IF(S129=1,InsertEntry(A129,TEXT(C129,"mm/dd/yyyy"),$I$2),"") -> testCases.Add(new TestCase("ASND",DateTime.Parse("02/28/2018"),180,TestCase.CaseType.Training,TestCase.GenerateType.BollingerBand));
A130: CLF | B130: 197 | C130: 2021-01-29 | D130: 15.34 | E130: 2021-04-30 | F130: 17.86 | G130: 3021.98 | H130: 1.837 | I130: 6 | J130: 0.3349 | K130: 0.279 | L130: 3035.195 | M130: 0.544 | N130: 3518.42 | O130: 496.44 | P130: 0.1643 | S130: 1 | U130: =IF(S130=1,InsertEntry(A130,TEXT(C130,"mm/dd/yyyy"),$I$2),"") -> testCases.Add(new TestCase("CLF",DateTime.Parse("01/29/2021"),180,TestCase.CaseType.Training,TestCase.GenerateType.BollingerBand));
A131: BIOS | B131: 733 | C131: 2019-09-30 | D131: 3.2 | E131: 2019-12-31 | F131: 3.73 | G131: 2345.6 | H131: 0.6346 | I131: 6 | J131: 0.0901 | K131: 0.311 | L131: 2347.076 | M131: 1.576 | N131: 2734.09 | O131: 388.49 | P131: 0.1656 | S131: 1 | U131: =IF(S131=1,InsertEntry(A131,TEXT(C131,"mm/dd/yyyy"),$I$2),"") -> testCases.Add(new TestCase("BIOS",DateTime.Parse("09/30/2019"),180,TestCase.CaseType.Training,TestCase.GenerateType.BollingerBand));
A132: TGS | B132: 65 | C132: 2017-03-31 | D132: 14.22 | E132: 2017-06-30 | F132: 16.61 | G132: 924.3 | H132: 1.785 | I132: 6 | J132: 0.5468 | K132: 0.084 | L132: 415.58 | M132: 0.56 | N132: 1079.65 | O132: 155.35 | P132: 0.1681 | S132: 1 | U132: =IF(S132=1,InsertEntry(A132,TEXT(C132,"mm/dd/yyyy"),$I$2),"") -> testCases.Add(new TestCase("TGS",DateTime.Parse("03/31/2017"),180,TestCase.CaseType.Training,TestCase.GenerateType.BollingerBand));
A133: VCEL | B133: 51 | C133: 2021-02-26 | D133: 48.28 | E133: 2021-05-28 | F133: 56.5 | G133: 2462.28 | H133: 0.4855 | I133: 6 | J133: 0.4206 | K133: 0.181 | L133: 1951.733 | M133: 2.06 | N133: 2881.5 | O133: 419.22 | P133: 0.1703 | S133: 1 | U133: =IF(S133=1,InsertEntry(A133,TEXT(C133,"mm/dd/yyyy"),$I$2),"") -> testCases.Add(new TestCase("VCEL",DateTime.Parse("02/26/2021"),180,TestCase.CaseType.Training,TestCase.GenerateType.BollingerBand));
A134: NGD | B134: 565 | C134: 2016-03-31 | D134: 3.73 | E134: 2016-06-30 | F134: 4.38 | G134: 2107.45 | H134: 0.0944 | I134: 6 | J134: -0.039 | K134: 0.696 | L134: 2261.898 | M134: 10.593 | N134: 2474.7 | O134: 367.25 | P134: 0.1743 | S134: 1 | U134: =IF(S134=1,InsertEntry(A134,TEXT(C134,"mm/dd/yyyy"),$I$2),"") -> testCases.Add(new TestCase("NGD",DateTime.Parse("03/31/2016"),180,TestCase.CaseType.Training,TestCase.GenerateType.BollingerBand));
A135: ABMD | B135: 4 | C135: 2018-04-30 | D135: 300.95 | E135: 2018-07-31 | F135: 354.53 | G135: 1203.8 | H135: 1.7585 | I135: 6 | J135: 0.6346 | K135: 0.151 | L135: 1049.877 | M135: 0.569 | N135: 1418.12 | O135: 214.32 | P135: 0.178 | S135: 1 | T135: =IF(R135=1,CHAR(34)&A135&CHAR(34)&","&CHAR(34)&TEXT(C135,"mm/dd/yyyy")&CHAR(34),"") ->  | U135: =IF(S135=1,InsertEntry(A135,TEXT(C135,"mm/dd/yyyy"),$I$2),"") -> testCases.Add(new TestCase("ABMD",DateTime.Parse("04/30/2018"),180,TestCase.CaseType.Training,TestCase.GenerateType.BollingerBand));
A136: IIVI | B136: 88 | C136: 2016-11-30 | D136: 30.2 | E136: 2017-02-28 | F136: 35.6 | G136: 2657.6 | H136: 1.0102 | I136: 6 | J136: 0.3981 | K136: 0.58 | L136: 2686.549 | M136: 0.99 | N136: 3132.8 | O136: 475.2 | P136: 0.1788 | S136: 1 | U136: =IF(S136=1,InsertEntry(A136,TEXT(C136,"mm/dd/yyyy"),$I$2),"") -> testCases.Add(new TestCase("IIVI",DateTime.Parse("11/30/2016"),180,TestCase.CaseType.Training,TestCase.GenerateType.BollingerBand));
A137: IRDM | B137: 56 | C137: 2018-08-31 | D137: 20.25 | E137: 2018-11-30 | F137: 23.88 | G137: 1134 | H137: 2.7544 | I137: 6 | J137: 0.3099 | K137: 0.149 | L137: 1139.371 | M137: 0.363 | N137: 1337.28 | O137: 203.28 | P137: 0.1793 | S137: 1 | U137: =IF(S137=1,InsertEntry(A137,TEXT(C137,"mm/dd/yyyy"),$I$2),"") -> testCases.Add(new TestCase("IRDM",DateTime.Parse("08/31/2018"),180,TestCase.CaseType.Training,TestCase.GenerateType.BollingerBand));
A138: RICE | B138: 59 | C138: 2016-06-30 | D138: 22.04 | E138: 2016-09-30 | F138: 26.11 | G138: 1300.36 | H138: 4.6255 | I138: 6 | J138: 0.0347 | K138: 0.353 | L138: 1318.078 | M138: 0.216 | N138: 1540.49 | O138: 240.13 | P138: 0.1847 | S138: 1 | U138: =IF(S138=1,InsertEntry(A138,TEXT(C138,"mm/dd/yyyy"),$I$2),"") -> testCases.Add(new TestCase("RICE",DateTime.Parse("06/30/2016"),180,TestCase.CaseType.Training,TestCase.GenerateType.BollingerBand));
A139: EXTR | B139: 119 | C139: 2017-05-31 | D139: 9.63 | E139: 2017-08-31 | F139: 11.43 | G139: 1145.97 | H139: 2.1591 | I139: 6 | J139: 0.5897 | K139: 0.228 | L139: 1147.941 | M139: 0.463 | N139: 1360.17 | O139: 214.2 | P139: 0.1869 | S139: 1 | U139: =IF(S139=1,InsertEntry(A139,TEXT(C139,"mm/dd/yyyy"),$I$2),"") -> testCases.Add(new TestCase("EXTR",DateTime.Parse("05/31/2017"),180,TestCase.CaseType.Training,TestCase.GenerateType.BollingerBand));
A140: HA | B140: 16 | C140: 2015-11-30 | D140: 36.2 | E140: 2016-02-29 | F140: 43.02 | G140: 579.2 | H140: 0.827 | I140: 6 | J140: 0.4139 | K140: 0.011 | L140: 36.267 | M140: 1.209 | N140: 688.32 | O140: 109.12 | P140: 0.1884 | S140: 1 | U140: =IF(S140=1,InsertEntry(A140,TEXT(C140,"mm/dd/yyyy"),$I$2),"") -> testCases.Add(new TestCase("HA",DateTime.Parse("11/30/2015"),180,TestCase.CaseType.Training,TestCase.GenerateType.BollingerBand));
A141: EXPI | B141: 66 | C141: 2020-08-31 | D141: 44.48 | E141: 2020-11-30 | F141: 53.33 | G141: 2935.68 | H141: 1.2814 | I141: 6 | J141: 0.3468 | K141: 0.371 | L141: 2966.297 | M141: 0.78 | N141: 3519.78 | O141: 584.1 | P141: 0.199 | S141: 1 | U141: =IF(S141=1,InsertEntry(A141,TEXT(C141,"mm/dd/yyyy"),$I$2),"") -> testCases.Add(new TestCase("EXPI",DateTime.Parse("08/31/2020"),180,TestCase.CaseType.Training,TestCase.GenerateType.BollingerBand));
A142: AMD | B142: 151 | C142: 2016-08-31 | D142: 7.4 | E142: 2016-11-30 | F142: 8.91 | G142: 1117.4 | H142: 5.4283 | I142: 6 | J142: 0.579 | K142: 0.265 | L142: 1117.412 | M142: 0.184 | N142: 1345.41 | O142: 228.01 | P142: 0.2041 | S142: 1 | U142: =IF(S142=1,InsertEntry(A142,TEXT(C142,"mm/dd/yyyy"),$I$2),"") -> testCases.Add(new TestCase("AMD",DateTime.Parse("08/31/2016"),180,TestCase.CaseType.Training,TestCase.GenerateType.BollingerBand));
A143: ALGN | B143: 21 | C143: 2017-05-31 | D143: 145.2 | E143: 2017-08-31 | F143: 176.74 | G143: 3049.2 | H143: 0.7974 | I143: 6 | J143: 0.6966 | K143: 0.617 | L143: 3108.458 | M143: 1.254 | N143: 3711.54 | O143: 662.34 | P143: 0.2172 | S143: 1 | U143: =IF(S143=1,InsertEntry(A143,TEXT(C143,"mm/dd/yyyy"),$I$2),"") -> testCases.Add(new TestCase("ALGN",DateTime.Parse("05/31/2017"),180,TestCase.CaseType.Training,TestCase.GenerateType.BollingerBand));
A144: CC | B144: 19 | C144: 2017-05-31 | D144: 39.99 | E144: 2017-08-31 | F144: 49.07 | G144: 759.81 | H144: 3.1564 | I144: 6 | J144: 0.7201 | K144: 0.156 | L144: 785.244 | M144: 0.317 | N144: 932.33 | O144: 172.52 | P144: 0.2271 | S144: 1 | U144: =IF(S144=1,InsertEntry(A144,TEXT(C144,"mm/dd/yyyy"),$I$2),"") -> testCases.Add(new TestCase("CC",DateTime.Parse("05/31/2017"),180,TestCase.CaseType.Training,TestCase.GenerateType.BollingerBand));
A145: EC | B145: 228 | C145: 2018-02-28 | D145: 17.51 | E145: 2018-05-31 | F145: 21.49 | G145: 3992.28 | H145: 1.0449 | I145: 6 | J145: 0.4325 | K145: 0.587 | L145: 4008.493 | M145: 0.957 | N145: 4899.72 | O145: 907.44 | P145: 0.2273 | S145: 1 | U145: =IF(S145=1,InsertEntry(A145,TEXT(C145,"mm/dd/yyyy"),$I$2),"") -> testCases.Add(new TestCase("EC",DateTime.Parse("02/28/2018"),180,TestCase.CaseType.Training,TestCase.GenerateType.BollingerBand));
A146: DAC | B146: 123 | C146: 2021-04-30 | D146: 54.29 | E146: 2021-07-30 | F146: 67.39 | G146: 6677.67 | H146: 0.1151 | I146: 6 | J146: 0.9792 | K146: 0.882 | L146: 9184.314 | M146: 8.687 | N146: 8288.97 | O146: 1611.3 | P146: 0.2413 | R146: 1 | S146: 1 | T146: "DAC","04/30/2021" | U146: =IF(S146=1,InsertEntry(A146,TEXT(C146,"mm/dd/yyyy"),$I$2),"") -> testCases.Add(new TestCase("DAC",DateTime.Parse("04/30/2021"),180,TestCase.CaseType.Training,TestCase.GenerateType.BollingerBand));
A147: AUY | B147: 1295 | C147: 2019-09-30 | D147: 3.18 | E147: 2019-12-31 | F147: 3.95 | G147: 4118.1 | H147: 0.3617 | I147: 6 | J147: 0.1246 | K147: 0.546 | L147: 4118.198 | M147: 2.765 | N147: 5115.25 | O147: 997.15 | P147: 0.2421 | S147: 1 | U147: =IF(S147=1,InsertEntry(A147,TEXT(C147,"mm/dd/yyyy"),$I$2),"") -> testCases.Add(new TestCase("AUY",DateTime.Parse("09/30/2019"),180,TestCase.CaseType.Training,TestCase.GenerateType.BollingerBand));
A148: PAAS | B148: 70 | C148: 2016-04-29 | D148: 15.67 | E148: 2016-07-29 | F148: 19.5 | G148: 1096.9 | H148: 2.2621 | I148: 6 | J148: 0.1503 | K148: 0.341 | L148: 1107.459 | M148: 0.442 | N148: 1365 | O148: 268.1 | P148: 0.2444 | S148: 1 | U148: =IF(S148=1,InsertEntry(A148,TEXT(C148,"mm/dd/yyyy"),$I$2),"") -> testCases.Add(new TestCase("PAAS",DateTime.Parse("04/29/2016"),180,TestCase.CaseType.Training,TestCase.GenerateType.BollingerBand));
A149: WTW | B149: 42 | C149: 2017-07-31 | D149: 35.82 | E149: 2017-10-31 | F149: 44.92 | G149: 1504.44 | H149: 8.3731 | I149: 6 | J149: 0.4733 | K149: 0.264 | L149: 1508.123 | M149: 0.119 | N149: 1886.64 | O149: 382.2 | P149: 0.254 | S149: 1 | U149: =IF(S149=1,InsertEntry(A149,TEXT(C149,"mm/dd/yyyy"),$I$2),"") -> testCases.Add(new TestCase("WTW",DateTime.Parse("07/31/2017"),180,TestCase.CaseType.Training,TestCase.GenerateType.BollingerBand));
A150: TRHC | B150: 43 | C150: 2018-07-31 | D150: 58.24 | E150: 2018-10-31 | F150: 73.88 | G150: 2504.32 | H150: 1.8049 | I150: 6 | J150: 0.7061 | K150: 0.325 | L150: 2540.264 | M150: 0.554 | N150: 3176.84 | O150: 672.52 | P150: 0.2685 | S150: 1 | U150: =IF(S150=1,InsertEntry(A150,TEXT(C150,"mm/dd/yyyy"),$I$2),"") -> testCases.Add(new TestCase("TRHC",DateTime.Parse("07/31/2018"),180,TestCase.CaseType.Training,TestCase.GenerateType.BollingerBand));
A151: SHOP | B151: 46 | C151: 2017-03-31 | D151: 68.09 | E151: 2017-06-30 | F151: 86.9 | G151: 3132.14 | H151: 0.1737 | I151: 6 | J151: 0.8187 | K151: 0.864 | L151: 4270.387 | M151: 5.757 | N151: 3997.4 | O151: 865.26 | P151: 0.2763 | S151: 1 | U151: =IF(S151=1,InsertEntry(A151,TEXT(C151,"mm/dd/yyyy"),$I$2),"") -> testCases.Add(new TestCase("SHOP",DateTime.Parse("03/31/2017"),180,TestCase.CaseType.Training,TestCase.GenerateType.BollingerBand));
A152: AMD | B152: 83 | C152: 2017-01-31 | D152: 10.37 | E152: 2017-04-28 | F152: 13.3 | G152: 860.71 | H152: 4.1692 | I152: 6 | J152: 0.7571 | K152: 0.037 | L152: 174.571 | M152: 0.24 | N152: 1103.9 | O152: 243.19 | P152: 0.2825 | S152: 1 | U152: =IF(S152=1,InsertEntry(A152,TEXT(C152,"mm/dd/yyyy"),$I$2),"") -> testCases.Add(new TestCase("AMD",DateTime.Parse("01/31/2017"),180,TestCase.CaseType.Training,TestCase.GenerateType.BollingerBand));
A153: CRSP | B153: 25 | C153: 2018-03-29 | D153: 45.71 | E153: 2018-06-29 | F153: 58.76 | G153: 1142.75 | H153: 7.1727 | I153: 6 | J153: 0.3048 | K153: 0.003 | L153: 45.71 | M153: 0.139 | N153: 1469 | O153: 326.25 | P153: 0.2855 | R153: 1 | S153: 1 | T153: "CRSP","03/29/2018" | U153: =IF(S153=1,InsertEntry(A153,TEXT(C153,"mm/dd/yyyy"),$I$2),"") -> testCases.Add(new TestCase("CRSP",DateTime.Parse("03/29/2018"),180,TestCase.CaseType.Training,TestCase.GenerateType.BollingerBand));
A154: DNR | B154: 682 | C154: 2018-06-29 | D154: 4.81 | E154: 2018-09-28 | F154: 6.2 | G154: 3280.42 | H154: 2.7935 | I154: 6 | J154: 0.4015 | K154: 0.455 | L154: 3283.607 | M154: 0.358 | N154: 4228.4 | O154: 947.98 | P154: 0.289 | S154: 1 | U154: =IF(S154=1,InsertEntry(A154,TEXT(C154,"mm/dd/yyyy"),$I$2),"") -> testCases.Add(new TestCase("DNR",DateTime.Parse("06/29/2018"),180,TestCase.CaseType.Training,TestCase.GenerateType.BollingerBand));
A155: BVN | B155: 144 | C155: 2016-05-31 | D155: 9.56 | E155: 2016-08-31 | F155: 12.36 | G155: 1376.64 | H155: 2.2191 | I155: 6 | J155: 0.05 | K155: 0.423 | L155: 1377.365 | M155: 0.451 | N155: 1779.84 | O155: 403.2 | P155: 0.2929 | S155: 1 | U155: =IF(S155=1,InsertEntry(A155,TEXT(C155,"mm/dd/yyyy"),$I$2),"") -> testCases.Add(new TestCase("BVN",DateTime.Parse("05/31/2016"),180,TestCase.CaseType.Training,TestCase.GenerateType.BollingerBand));
A156: TLRD | B156: 126 | C156: 2018-01-31 | D156: 24.19 | E156: 2018-04-30 | F156: 31.55 | G156: 3047.94 | H156: 2.9085 | I156: 6 | J156: -0.0224 | K156: 0.478 | L156: 3060.531 | M156: 0.344 | N156: 3975.3 | O156: 927.36 | P156: 0.3043 | S156: 1 | U156: =IF(S156=1,InsertEntry(A156,TEXT(C156,"mm/dd/yyyy"),$I$2),"") -> testCases.Add(new TestCase("TLRD",DateTime.Parse("01/31/2018"),180,TestCase.CaseType.Training,TestCase.GenerateType.BollingerBand));
A157: FRPT | B157: 147 | C157: 2018-07-31 | D157: 29 | E157: 2018-10-31 | F157: 38.1 | G157: 4263 | H157: 1.0733 | I157: 6 | J157: 0.2411 | K157: 0.546 | L157: 4271.623 | M157: 0.932 | N157: 5600.7 | O157: 1337.7 | P157: 0.3138 | S157: 1 | U157: =IF(S157=1,InsertEntry(A157,TEXT(C157,"mm/dd/yyyy"),$I$2),"") -> testCases.Add(new TestCase("FRPT",DateTime.Parse("07/31/2018"),180,TestCase.CaseType.Training,TestCase.GenerateType.BollingerBand));
A158: NVCR | B158: 44 | C158: 2020-10-30 | D158: 122.1 | E158: 2021-01-29 | F158: 160.96 | G158: 5372.4 | H158: 0.5956 | I158: 6 | J158: 0.2852 | K158: 0.662 | L158: 5625.175 | M158: 1.679 | N158: 7082.24 | O158: 1709.84 | P158: 0.3183 | S158: 1 | U158: =IF(S158=1,InsertEntry(A158,TEXT(C158,"mm/dd/yyyy"),$I$2),"") -> testCases.Add(new TestCase("NVCR",DateTime.Parse("10/30/2020"),180,TestCase.CaseType.Training,TestCase.GenerateType.BollingerBand));
A159: SITM | B159: 51 | C159: 2020-08-31 | D159: 65.88 | E159: 2020-11-30 | F159: 86.97 | G159: 3359.88 | H159: 1.1219 | I159: 6 | J159: 0.7136 | K159: 0.424 | L159: 3388.158 | M159: 0.891 | N159: 4435.47 | O159: 1075.59 | P159: 0.3201 | R159: 1 | S159: 1 | T159: "SITM","08/31/2020" | U159: =IF(S159=1,InsertEntry(A159,TEXT(C159,"mm/dd/yyyy"),$I$2),"") -> testCases.Add(new TestCase("SITM",DateTime.Parse("08/31/2020"),180,TestCase.CaseType.Training,TestCase.GenerateType.BollingerBand));
A160: EHTH | B160: 30 | C160: 2019-02-28 | D160: 53.41 | E160: 2019-05-31 | F160: 70.56 | G160: 1602.3 | H160: 0.6578 | I160: 6 | J160: 0.5506 | K160: 0.224 | L160: 1647.043 | M160: 1.52 | N160: 2116.8 | O160: 514.5 | P160: 0.3211 | S160: 1 | U160: =IF(S160=1,InsertEntry(A160,TEXT(C160,"mm/dd/yyyy"),$I$2),"") -> testCases.Add(new TestCase("EHTH",DateTime.Parse("02/28/2019"),180,TestCase.CaseType.Training,TestCase.GenerateType.BollingerBand));
A161: CPRI | B161: 78 | C161: 2021-01-29 | D161: 41.66 | E161: 2021-04-30 | F161: 55.08 | G161: 3249.48 | H161: 1.6984 | I161: 6 | J161: 0.1977 | K161: 0.301 | L161: 3282.921 | M161: 0.589 | N161: 4296.24 | O161: 1046.76 | P161: 0.3221 | S161: 1 | U161: =IF(S161=1,InsertEntry(A161,TEXT(C161,"mm/dd/yyyy"),$I$2),"") -> testCases.Add(new TestCase("CPRI",DateTime.Parse("01/29/2021"),180,TestCase.CaseType.Training,TestCase.GenerateType.BollingerBand));
A162: SQ | B162: 10 | C162: 2020-08-31 | D162: 159.56 | E162: 2020-11-30 | F162: 210.96 | G162: 1595.6 | H162: 2.325 | I162: 6 | J162: 0.2931 | K162: 0.205 | L162: 1634.822 | M162: 0.43 | N162: 2109.6 | O162: 514 | P162: 0.3221 | S162: 1 | U162: =IF(S162=1,InsertEntry(A162,TEXT(C162,"mm/dd/yyyy"),$I$2),"") -> testCases.Add(new TestCase("SQ",DateTime.Parse("08/31/2020"),180,TestCase.CaseType.Training,TestCase.GenerateType.BollingerBand));
A163: KRO | B163: 60 | C163: 2017-01-31 | D163: 13.22 | E163: 2017-04-28 | F163: 17.52 | G163: 793.2 | H163: 7.6127 | I163: 6 | J163: 0.3235 | K163: 0.02 | L163: 95.606 | M163: 0.131 | N163: 1051.2 | O163: 258 | P163: 0.3253 | S163: 1 | U163: =IF(S163=1,InsertEntry(A163,TEXT(C163,"mm/dd/yyyy"),$I$2),"") -> testCases.Add(new TestCase("KRO",DateTime.Parse("01/31/2017"),180,TestCase.CaseType.Training,TestCase.GenerateType.BollingerBand));
A164: PDD | B164: 13 | C164: 2020-05-29 | D164: 66.87 | E164: 2020-08-31 | F164: 88.94 | G164: 869.31 | H164: 0.5921 | I164: 6 | J164: 0.3705 | K164: 0.127 | L164: 884.596 | M164: 1.689 | N164: 1156.22 | O164: 286.91 | P164: 0.33 | R164: 1 | S164: 1 | T164: "PDD","05/29/2020" | U164: =IF(S164=1,InsertEntry(A164,TEXT(C164,"mm/dd/yyyy"),$I$2),"") -> testCases.Add(new TestCase("PDD",DateTime.Parse("05/29/2020"),180,TestCase.CaseType.Training,TestCase.GenerateType.BollingerBand));
A165: GTHX | B165: 114 | C165: 2018-04-30 | D165: 38.35 | E165: 2018-07-31 | F165: 51.35 | G165: 4371.9 | H165: 0.3678 | I165: 6 | J165: 0.2988 | K165: 0.72 | L165: 5019.898 | M165: 2.719 | N165: 5853.9 | O165: 1482 | P165: 0.339 | S165: 1 | U165: =IF(S165=1,InsertEntry(A165,TEXT(C165,"mm/dd/yyyy"),$I$2),"") -> testCases.Add(new TestCase("GTHX",DateTime.Parse("04/30/2018"),180,TestCase.CaseType.Training,TestCase.GenerateType.BollingerBand));
A166: VEDL | B166: 147 | C166: 2016-08-31 | D166: 10 | E166: 2016-11-30 | F166: 13.4 | G166: 1470 | H166: 4.1026 | I166: 6 | J166: 0.1779 | K166: 0.351 | L166: 1478.507 | M166: 0.244 | N166: 1969.8 | O166: 499.8 | P166: 0.34 | S166: 1 | U166: =IF(S166=1,InsertEntry(A166,TEXT(C166,"mm/dd/yyyy"),$I$2),"") -> testCases.Add(new TestCase("VEDL",DateTime.Parse("08/31/2016"),180,TestCase.CaseType.Training,TestCase.GenerateType.BollingerBand));
A167: TSLA | B167: 7 | C167: 2020-07-31 | D167: 286.15 | E167: 2020-10-30 | F167: 388.04 | G167: 2003.05 | H167: 2.2974 | I167: 6 | J167: 0.5975 | K167: 0.295 | L167: 2055.995 | M167: 0.435 | N167: 2716.28 | O167: 713.23 | P167: 0.3561 | S167: 1 | U167: =IF(S167=1,InsertEntry(A167,TEXT(C167,"mm/dd/yyyy"),$I$2),"") -> testCases.Add(new TestCase("TSLA",DateTime.Parse("07/31/2020"),180,TestCase.CaseType.Training,TestCase.GenerateType.BollingerBand));
A168: BAND | B168: 20 | C168: 2020-06-30 | D168: 127 | E168: 2020-09-30 | F168: 174.57 | G168: 2540 | H168: 1.1292 | I168: 6 | J168: 0.2907 | K168: 0.366 | L168: 2549.931 | M168: 0.886 | N168: 3491.4 | O168: 951.4 | P168: 0.3746 | R168: 1 | S168: 1 | T168: "BAND","06/30/2020" | U168: =IF(S168=1,InsertEntry(A168,TEXT(C168,"mm/dd/yyyy"),$I$2),"") -> testCases.Add(new TestCase("BAND",DateTime.Parse("06/30/2020"),180,TestCase.CaseType.Training,TestCase.GenerateType.BollingerBand));
A169: ARWR | B169: 96 | C169: 2019-07-31 | D169: 29.06 | E169: 2019-10-31 | F169: 40.05 | G169: 2789.76 | H169: 0.4635 | I169: 6 | J169: 0.2194 | K169: 0.38 | L169: 2800.263 | M169: 2.158 | N169: 3844.8 | O169: 1055.04 | P169: 0.3782 | S169: 1 | U169: =IF(S169=1,InsertEntry(A169,TEXT(C169,"mm/dd/yyyy"),$I$2),"") -> testCases.Add(new TestCase("ARWR",DateTime.Parse("07/31/2019"),180,TestCase.CaseType.Training,TestCase.GenerateType.BollingerBand));
A170: THC | B170: 47 | C170: 2018-03-29 | D170: 24.25 | E170: 2018-06-29 | F170: 33.57 | G170: 1139.75 | H170: 2.7531 | I170: 6 | J170: -0.0061 | K170: 0.007 | L170: 43.851 | M170: 0.363 | N170: 1577.79 | O170: 438.04 | P170: 0.3843 | S170: 1 | U170: =IF(S170=1,InsertEntry(A170,TEXT(C170,"mm/dd/yyyy"),$I$2),"") -> testCases.Add(new TestCase("THC",DateTime.Parse("03/29/2018"),180,TestCase.CaseType.Training,TestCase.GenerateType.BollingerBand));
A171: COOP | B171: 58 | C171: 2020-09-30 | D171: 22.32 | E171: 2020-12-31 | F171: 31.03 | G171: 1294.56 | H171: 2.4391 | I171: 6 | J171: 0.4053 | K171: 0.151 | L171: 1305.887 | M171: 0.41 | N171: 1799.74 | O171: 505.18 | P171: 0.3902 | S171: 1 | U171: =IF(S171=1,InsertEntry(A171,TEXT(C171,"mm/dd/yyyy"),$I$2),"") -> testCases.Add(new TestCase("COOP",DateTime.Parse("09/30/2020"),180,TestCase.CaseType.Training,TestCase.GenerateType.BollingerBand));
A172: SIG | B172: 57 | C172: 2021-03-31 | D172: 57.98 | E172: 2021-06-30 | F172: 80.79 | G172: 3304.86 | H172: 2.9658 | I172: 6 | J172: 0.4246 | K172: 0.357 | L172: 3326.769 | M172: 0.337 | N172: 4605.03 | O172: 1300.17 | P172: 0.3934 | S172: 1 | U172: =IF(S172=1,InsertEntry(A172,TEXT(C172,"mm/dd/yyyy"),$I$2),"") -> testCases.Add(new TestCase("SIG",DateTime.Parse("03/31/2021"),180,TestCase.CaseType.Training,TestCase.GenerateType.BollingerBand));
A173: BTG | B173: 670 | C173: 2016-04-29 | D173: 2.22 | E173: 2016-07-29 | F173: 3.13 | G173: 1487.4 | H173: 1.6825 | I173: 6 | J173: 0.1226 | K173: 0.458 | L173: 1488.987 | M173: 0.594 | N173: 2097.1 | O173: 609.7 | P173: 0.4099 | S173: 1 | U173: =IF(S173=1,InsertEntry(A173,TEXT(C173,"mm/dd/yyyy"),$I$2),"") -> testCases.Add(new TestCase("BTG",DateTime.Parse("04/29/2016"),180,TestCase.CaseType.Training,TestCase.GenerateType.BollingerBand));
A174: TREE | B174: 7 | C174: 2017-06-30 | D174: 172.2 | E174: 2017-09-29 | F174: 244.45 | G174: 1205.4 | H174: 1.2416 | I174: 6 | J174: 0.4553 | K174: 0.22 | L174: 1207.811 | M174: 0.805 | N174: 1711.15 | O174: 505.75 | P174: 0.4196 | S174: 1 | U174: =IF(S174=1,InsertEntry(A174,TEXT(C174,"mm/dd/yyyy"),$I$2),"") -> testCases.Add(new TestCase("TREE",DateTime.Parse("06/30/2017"),180,TestCase.CaseType.Training,TestCase.GenerateType.BollingerBand));
A175: SE | B175: 25 | C175: 2020-06-30 | D175: 107.24 | E175: 2020-09-30 | F175: 154.04 | G175: 2681 | H175: 1.0585 | I175: 6 | J175: 0.5877 | K175: 0.391 | L175: 2720.061 | M175: 0.945 | N175: 3851 | O175: 1170 | P175: 0.4364 | R175: 1 | T175: "SE","06/30/2020" | U175: =IF(S175=1,InsertEntry(A175,TEXT(C175,"mm/dd/yyyy"),$I$2),"") -> 
A176: CLVS | B176: 12 | C176: 2017-03-31 | D176: 63.67 | E176: 2017-06-30 | F176: 93.63 | G176: 764.04 | H176: 2.8671 | I176: 6 | J176: 0.4344 | K176: 0.052 | L176: 258.733 | M176: 0.349 | N176: 1123.56 | O176: 359.52 | P176: 0.4706 | S176: 1 | U176: =IF(S176=1,InsertEntry(A176,TEXT(C176,"mm/dd/yyyy"),$I$2),"") -> testCases.Add(new TestCase("CLVS",DateTime.Parse("03/31/2017"),180,TestCase.CaseType.Training,TestCase.GenerateType.BollingerBand));
A177: NTLA | B177: 28 | C177: 2020-12-31 | D177: 54.4 | E177: 2021-03-31 | F177: 80.26 | G177: 1523.2 | H177: 2.165 | I177: 6 | J177: 0.3518 | K177: 0.155 | L177: 1547.941 | M177: 0.462 | N177: 2247.28 | O177: 724.08 | P177: 0.4754 | R177: 1 | T177: "NTLA","12/31/2020" | U177: =IF(S177=1,InsertEntry(A177,TEXT(C177,"mm/dd/yyyy"),$I$2),"") -> 
A178: PTON | B178: 33 | C178: 2020-09-30 | D178: 99.24 | E178: 2020-12-31 | F178: 151.72 | G178: 3274.92 | H178: 0.9601 | I178: 6 | J178: 0.6773 | K178: 0.384 | L178: 3317.521 | M178: 1.042 | N178: 5006.76 | O178: 1731.84 | P178: 0.5288 | S178: 1 | U178: =IF(S178=1,InsertEntry(A178,TEXT(C178,"mm/dd/yyyy"),$I$2),"") -> testCases.Add(new TestCase("PTON",DateTime.Parse("09/30/2020"),180,TestCase.CaseType.Training,TestCase.GenerateType.BollingerBand));
A179: MTDR | B179: 116 | C179: 2021-03-31 | D179: 23.45 | E179: 2021-06-30 | F179: 36.01 | G179: 2720.2 | H179: 3.6106 | I179: 6 | J179: 0.3459 | K179: 0.293 | L179: 2732.714 | M179: 0.277 | N179: 4177.16 | O179: 1456.96 | P179: 0.5356 | R179: 1 | T179: "MTDR","03/31/2021" | U179: =IF(S179=1,InsertEntry(A179,TEXT(C179,"mm/dd/yyyy"),$I$2),"") -> 
A180: ABX | B180: 22 | C180: 2016-03-31 | D180: 13.58 | E180: 2016-06-30 | F180: 21.35 | G180: 298.76 | H180: 0.8989 | I180: 6 | J180: 0.0912 | K180: 0.073 | L180: 237.526 | M180: 1.112 | N180: 469.7 | O180: 170.94 | P180: 0.5722 | S180: 1 | U180: =IF(S180=1,InsertEntry(A180,TEXT(C180,"mm/dd/yyyy"),$I$2),"") -> testCases.Add(new TestCase("ABX",DateTime.Parse("03/31/2016"),180,TestCase.CaseType.Training,TestCase.GenerateType.BollingerBand));
A181: DOCU | B181: 30 | C181: 2020-05-29 | D181: 139.74 | E181: 2020-08-31 | F181: 223 | G181: 4192.2 | H181: 0.1236 | I181: 6 | J181: 0.5437 | K181: 0.609 | L181: 4237.878 | M181: 8.091 | N181: 6690 | O181: 2497.8 | P181: 0.5958 | R181: 1 | T181: "DOCU","05/29/2020" | U181: =IF(S181=1,InsertEntry(A181,TEXT(C181,"mm/dd/yyyy"),$I$2),"") -> 
A182: NKTR | B182: 50 | C182: 2017-11-30 | D182: 53.99 | E182: 2018-02-28 | F182: 86.56 | G182: 2699.5 | H182: 2.147 | I182: 6 | J182: 0.2627 | K182: 0.427 | L182: 2720.512 | M182: 0.466 | N182: 4328 | O182: 1628.5 | P182: 0.6033 | S182: 1 | U182: =IF(S182=1,InsertEntry(A182,TEXT(C182,"mm/dd/yyyy"),$I$2),"") -> testCases.Add(new TestCase("NKTR",DateTime.Parse("11/30/2017"),180,TestCase.CaseType.Training,TestCase.GenerateType.BollingerBand));
A183: SIG | B183: 45 | C183: 2020-10-30 | D183: 22.28 | E183: 2021-01-29 | F183: 40.62 | G183: 1002.6 | H183: 3.4528 | I183: 6 | J183: 0.237 | K183: 0.114 | L183: 970.266 | M183: 0.29 | N183: 1827.9 | O183: 825.3 | P183: 0.8232 | R183: 1 | T183: "SIG","10/30/2020" | U183: =IF(S183=1,InsertEntry(A183,TEXT(C183,"mm/dd/yyyy"),$I$2),"") -> 
A184: AG | B184: 127 | C184: 2016-03-31 | D184: 6.48 | E184: 2016-06-30 | F184: 13.58 | G184: 822.96 | H184: 0.284 | I184: 6 | J184: -0.103 | K184: 0.231 | L184: 751.909 | M184: 3.522 | N184: 1724.66 | O184: 901.7 | P184: 1.0957 | S184: 1 | U184: =IF(S184=1,InsertEntry(A184,TEXT(C184,"mm/dd/yyyy"),$I$2),"") -> testCases.Add(new TestCase("AG",DateTime.Parse("03/31/2016"),180,TestCase.CaseType.Training,TestCase.GenerateType.BollingerBand));

Sheet Tests
G3: MODEL_SK_ALEXNET | V3: MODEL_SK_ALEXNETDEEP | AF3: MODEL_VGG16 | AP3: MODEL_INCEPTION | AZ3: MODEL_RESNET50
A4: LR | B4: 1e-05 | J4: LR | K4: 1e-05 | S4: LR | T4: 1e-05 | AC4: LR | AD4: 1e-05 | AM4: LR | AN4: 1e-05 | AW4: LR | AX4: 1e-05
A5: BATCH_SIZE | B5: 128 | J5: BATCH_SIZE | K5: 128 | S5: BATCH_SIZE | T5: 128 | AC5: BATCH_SIZE | AD5: 128 | AM5: BATCH_SIZE | AN5: 128 | AW5: BATCH_SIZE | AX5: 128
A6: EPOCHS | B6: 125 | J6: EPOCHS | K6: 250 | S6: EPOCHS | T6: 50 | AC6: EPOCHS | AD6: 50 | AM6: EPOCHS | AN6: 25 | AW6: EPOCHS | AX6: 200
A7: DAYCOUNT | B7: 180 | J7: DAYCOUNT | K7: 180 | S7: DAYCOUNT | T7: 180 | AC7: DAYCOUNT | AD7: 180 | AM7: DAYCOUNT | AN7: 180 | AW7: DAYCOUNT | AX7: 180
C8: Expected | D8: Received | E8: In Training | F8: Correct | L8: Expected | M8: Received | N8: In Training | O8: Correct
A9: =1 -> 1 | B9: "WTW","07/31/2017" | C9: Positive | D9: Negative | E9: No | F9: =IF(C9=D9,1,0) -> 0 | J9: =1 -> 1 | K9: "WTW","07/31/2017" | L9: Positive | M9: Negative | N9: No | O9: =IF(L9=M9,1,0) -> 0 | U9: Expected | V9: Received | W9: In Training | X9: Correct | AE9: Expected | AF9: Received | AG9: In Training | AH9: Correct | AO9: Expected | AP9: Received | AQ9: In Training | AR9: Correct | AY9: Expected | AZ9: Received | BA9: In Training | BB9: Correct
A10: =A9+1 -> 2 | B10: "TRHC","07/31/2018" | C10: Positive | D10: Positive | E10: No | F10: =IF(C10=D10,1,0) -> 1 | J10: =J9+1 -> 2 | K10: "TRHC","07/31/2018" | L10: Positive | M10: Negative | N10: No | O10: =IF(L10=M10,1,0) -> 0 | S10: =1 -> 1 | T10: "WTW","07/31/2017" | U10: Positive | V10: Negative | W10: No | X10: =IF(U10=V10,1,0) -> 0 | AC10: =1 -> 1 | AD10: "WTW","07/31/2017" | AE10: Positive | AF10: Negative | AG10: No | AH10: =IF(AE10=AF10,1,0) -> 0 | AM10: =1 -> 1 | AN10: CWH,"01/31/2020" | AO10: Negative | AP10: Negative | AQ10: No | AR10: =IF(AO10=AP10,1,0) -> 1 | AW10: =1 -> 1 | AX10: CWH,"01/31/2020" | AY10: Negative | AZ10: Negative | BA10: No | BB10: =IF(AY10=AZ10,1,0) -> 1
A11: =A10+1 -> 3 | B11: "SHOP","03/31/2017" | C11: Positive | D11: Negative | E11: No | F11: 0 | J11: =J10+1 -> 3 | K11: "SHOP","03/31/2017" | L11: Positive | M11: Negative | N11: No | O11: 0 | S11: =S10+1 -> 2 | T11: "TRHC","07/31/2018" | U11: Positive | V11: Positive | W11: No | X11: =IF(U11=V11,1,0) -> 1 | AC11: =AC10+1 -> 2 | AD11: "TRHC","07/31/2018" | AE11: Positive | AF11: Positive | AG11: No | AH11: =IF(AE11=AF11,1,0) -> 1 | AM11: =AM10+1 -> 2 | AN11: DISCA,"02/26/2021" | AO11: Negative | AP11: Negative | AQ11: No | AR11: =IF(AO11=AP11,1,0) -> 1 | AW11: =AW10+1 -> 2 | AX11: DISCA,"02/26/2021" | AY11: Negative | AZ11: Negative | BA11: No | BB11: =IF(AY11=AZ11,1,0) -> 1
A12: 4 | B12: "AMD","01/31/2017" | C12: Positive | D12: Positive | E12: No | F12: 1 | J12: 4 | K12: "AMD","01/31/2017" | L12: Positive | M12: Positive | N12: No | O12: 1 | S12: =S11+1 -> 3 | T12: "SHOP","03/31/2017" | U12: Positive | V12: Positive | W12: No | X12: 1 | AC12: =AC11+1 -> 3 | AD12: "SHOP","03/31/2017" | AE12: Positive | AF12: Positive | AG12: No | AH12: 1 | AM12: =AM11+1 -> 3 | AN12: ANAB,"02/28/2018" | AO12: Negative | AP12: Positive | AQ12: No | AR12: 0 | AW12: =AW11+1 -> 3 | AX12: ANAB,"02/28/2018" | AY12: Negative | AZ12: Negative | BA12: No | BB12: 1
A13: 5 | B13: "CRSP","03/29/2018" | C13: Positive | D13: Positive | E13: No | F13: 1 | J13: 5 | K13: "CRSP","03/29/2018" | L13: Positive | M13: Positive | N13: No | O13: 1 | S13: 4 | T13: "AMD","01/31/2017" | U13: Positive | V13: Positive | W13: No | X13: 1 | AC13: 4 | AD13: "AMD","01/31/2017" | AE13: Positive | AF13: Positive | AG13: No | AH13: 1 | AM13: 4 | AN13: SPWR,"07/31/2017" | AO13: Negative | AP13: Positive | AQ13: No | AR13: 0 | AW13: 4 | AX13: SPWR,"07/31/2017" | AY13: Negative | AZ13: Negative | BA13: No | BB13: 1
A14: 6 | B14: "DNR","06/29/2018" | C14: Positive | D14: Positive | E14: Yes | F14: 1 | J14: 6 | K14: "DNR","06/29/2018" | L14: Positive | M14: Positive | N14: Yes | O14: 1 | S14: 5 | T14: "CRSP","03/29/2018" | U14: Positive | V14: Negative | W14: No | X14: 0 | AC14: 5 | AD14: "CRSP","03/29/2018" | AE14: Positive | AF14: Negative | AG14: No | AH14: 0 | AM14: 5 | AN14: DNLI,"12/31/2020" | AO14: Negative | AP14: Positive | AQ14: No | AR14: 0 | AW14: 5 | AX14: DNLI,"12/31/2020" | AY14: Negative | AZ14: Negative | BA14: No | BB14: 1
A15: 7 | B15: "BVN","05/31/2016" | C15: Positive | D15: Positive | E15: Yes | F15: 1 | J15: 7 | K15: "BVN","05/31/2016" | L15: Positive | M15: Positive | N15: Yes | O15: 1 | S15: 6 | T15: "DNR","06/29/2018" | U15: Positive | V15: Positive | W15: Yes | X15: 1 | AC15: 6 | AD15: "DNR","06/29/2018" | AE15: Positive | AF15: Positive | AG15: Yes | AH15: 1 | AM15: 6 | AN15: IDTI,"11/30/2015" | AO15: Negative | AP15: Positive | AQ15: No | AR15: 0 | AW15: 6 | AX15: IDTI,"11/30/2015" | AY15: Negative | AZ15: Negative | BA15: No | BB15: 1
A16: 8 | B16: "TLRD","01/31/2018" | C16: Positive | D16: Positive | E16: Yes | F16: 1 | J16: 8 | K16: "TLRD","01/31/2018" | L16: Positive | M16: Positive | N16: Yes | O16: 1 | S16: 7 | T16: "BVN","05/31/2016" | U16: Positive | V16: Positive | W16: Yes | X16: 1 | AC16: 7 | AD16: "BVN","05/31/2016" | AE16: Positive | AF16: Positive | AG16: Yes | AH16: 1 | AM16: 7 | AN16: PRO,"07/31/2019" | AO16: Negative | AP16: Negative | AQ16: Yes | AR16: 1 | AW16: 7 | AX16: PRO,"07/31/2019" | AY16: Negative | AZ16: Negative | BA16: Yes | BB16: 1
A17: 9 | B17: "FRPT","07/31/2018" | C17: Positive | D17: Positive | E17: Yes | F17: 1 | J17: 9 | K17: "FRPT","07/31/2018" | L17: Positive | M17: Positive | N17: Yes | O17: 1 | S17: 8 | T17: "TLRD","01/31/2018" | U17: Positive | V17: Positive | W17: Yes | X17: 1 | AC17: 8 | AD17: "TLRD","01/31/2018" | AE17: Positive | AF17: Positive | AG17: Yes | AH17: 1 | AM17: 8 | AN17: ACLS,"11/30/2017" | AO17: Negative | AP17: Negative | AQ17: Yes | AR17: 1 | AW17: 8 | AX17: ACLS,"11/30/2017" | AY17: Negative | AZ17: Negative | BA17: Yes | BB17: 1
A18: 10 | B18: "NVCR","10/30/2020" | C18: Positive | D18: Positive | E18: Yes | F18: 1 | J18: 10 | K18: "NVCR","10/30/2020" | L18: Positive | M18: Positive | N18: Yes | O18: 1 | S18: 9 | T18: "FRPT","07/31/2018" | U18: Positive | V18: Positive | W18: Yes | X18: 1 | AC18: 9 | AD18: "FRPT","07/31/2018" | AE18: Positive | AF18: Positive | AG18: Yes | AH18: 1 | AM18: 9 | AN18: PUMP,"12/29/2017" | AO18: Negative | AP18: Positive | AQ18: Yes | AR18: 0 | AW18: 9 | AX18: PUMP,"12/29/2017" | AY18: Negative | AZ18: Negative | BA18: Yes | BB18: 1
S19: 10 | T19: "NVCR","10/30/2020" | U19: Positive | V19: Positive | W19: Yes | X19: 1 | AC19: 10 | AD19: "NVCR","10/30/2020" | AE19: Positive | AF19: Positive | AG19: Yes | AH19: 1 | AM19: 10 | AN19: TDOC,"08/31/2018" | AO19: Negative | AP19: Positive | AQ19: Yes | AR19: 0 | AW19: 10 | AX19: TDOC,"08/31/2018" | AY19: Negative | AZ19: Negative | BA19: Yes | BB19: 1
A20: =A18+1 -> 11 | B20: "TDOC","08/31/2018" | C20: Negative | D20: Negative | E20: Yes | F20: 1 | J20: =J18+1 -> 11 | K20: "TDOC","08/31/2018" | L20: Negative | M20: Negative | N20: Yes | O20: =IF(L20=M20,1,0) -> 1 | AM20: 11 | AN20: ATHM,"08/31/2017" | AO20: Negative | AP20: Positive | AQ20: Yes | AR20: 0 | AW20: 11 | AX20: ATHM,"08/31/2017" | AY20: Negative | AZ20: Negative | BA20: Yes | BB20: 1
A21: =A20+1 -> 12 | B21: "WRD","05/31/2018" | C21: Negative | D21: Negative | E21: Yes | F21: 1 | J21: =J20+1 -> 12 | K21: "WRD","05/31/2018" | L21: Negative | M21: Negative | N21: Yes | O21: 1 | S21: =S19+1 -> 11 | T21: "TDOC","08/31/2018" | U21: Negative | V21: Negative | W21: Yes | X21: =IF(U21=V21,1,0) -> 1 | AC21: =AC19+1 -> 11 | AD21: "TDOC","08/31/2018" | AE21: Negative | AF21: Negative | AG21: Yes | AH21: =IF(AE21=AF21,1,0) -> 1
A22: =A21+1 -> 13 | B22: "FTCH","12/31/2020" | C22: Negative | D22: Negative | E22: Yes | F22: 1 | J22: =J21+1 -> 13 | K22: "FTCH","12/31/2020" | L22: Negative | M22: Negative | N22: Yes | O22: 1 | S22: =S21+1 -> 12 | T22: "WRD","05/31/2018" | U22: Negative | V22: Negative | W22: Yes | X22: 1 | AC22: =AC21+1 -> 12 | AD22: "WRD","05/31/2018" | AE22: Negative | AF22: Negative | AG22: Yes | AH22: 1 | AM22: =AM19+1 -> 11 | AN22: DAC,"04/30/2021" | AO22: Positive | AP22: Negative | AQ22: Yes | AR22: =IF(AO22=AP22,1,0) -> 0 | AW22: =AW20+1 -> 12 | AX22: DAC,"04/30/2021" | AY22: Positive | AZ22: Positive | BA22: Yes | BB22: =IF(AY22=AZ22,1,0) -> 1
A23: 14 | B23: "COKE","10/30/2015" | C23: Negative | D23: Negative | E23: Yes | F23: 1 | J23: 14 | K23: "COKE","10/30/2015" | L23: Negative | M23: Negative | N23: Yes | O23: 1 | S23: =S22+1 -> 13 | T23: "FTCH","12/31/2020" | U23: Negative | V23: Negative | W23: Yes | X23: 1 | AC23: =AC22+1 -> 13 | AD23: "FTCH","12/31/2020" | AE23: Negative | AF23: Negative | AG23: Yes | AH23: 1 | AM23: =AM22+1 -> 12 | AN23: CRSP,"03/29/2018" | AO23: Positive | AP23: Positive | AQ23: Yes | AR23: 1 | AW23: =AW22+1 -> 13 | AX23: CRSP,"03/29/2018" | AY23: Positive | AZ23: Positive | BA23: Yes | BB23: 1
A24: 15 | B24: "BEDU","10/31/2017" | C24: Negative | D24: Negative | E24: Yes | F24: 1 | J24: 15 | K24: "BEDU","10/31/2017" | L24: Negative | M24: Negative | N24: Yes | O24: 1 | S24: 14 | T24: "COKE","10/30/2015" | U24: Negative | V24: Negative | W24: Yes | X24: 1 | AC24: 14 | AD24: "COKE","10/30/2015" | AE24: Negative | AF24: Negative | AG24: Yes | AH24: 1 | AM24: =AM23+1 -> 13 | AN24: SITM,"08/31/2020" | AO24: Positive | AP24: Positive | AQ24: Yes | AR24: 1 | AW24: =AW23+1 -> 14 | AX24: SITM,"08/31/2020" | AY24: Positive | AZ24: Positive | BA24: Yes | BB24: 1
A25: 16 | B25: "WIX","07/31/2020" | C25: Negative | D25: Negative | E25: No | F25: 1 | J25: 16 | K25: "WIX","07/31/2020" | L25: Negative | M25: Negative | N25: No | O25: 1 | S25: 15 | T25: "BEDU","10/31/2017" | U25: Negative | V25: Negative | W25: Yes | X25: 1 | AC25: 15 | AD25: "BEDU","10/31/2017" | AE25: Negative | AF25: Negative | AG25: Yes | AH25: 1 | AM25: 14 | AN25: PDD,"05/29/2020" | AO25: Positive | AP25: Positive | AQ25: Yes | AR25: 1 | AW25: =AW24+1 -> 15 | AX25: PDD,"05/29/2020" | AY25: Positive | AZ25: Positive | BA25: Yes | BB25: 1
A26: 17 | B26: "ATHM","08/31/2017" | C26: Negative | D26: Positive | E26: No | F26: 0 | J26: 17 | K26: "ATHM","08/31/2017" | L26: Negative | M26: Positive | N26: No | O26: 0 | S26: 16 | T26: "WIX","07/31/2020" | U26: Negative | V26: Negative | W26: No | X26: 1 | AC26: 16 | AD26: "WIX","07/31/2020" | AE26: Negative | AF26: Negative | AG26: No | AH26: 1 | AM26: 15 | AN26: BAND,"06/30/2020" | AO26: Positive | AP26: Positive | AQ26: Yes | AR26: 1 | AW26: 16 | AX26: BAND,"06/30/2020" | AY26: Positive | AZ26: Positive | BA26: Yes | BB26: 1
A27: 18 | B27: "CVRR","06/29/2018" | C27: Negative | D27: Positive | E27: No | F27: 0 | J27: 18 | K27: "CVRR","06/29/2018" | L27: Negative | M27: Positive | N27: No | O27: 0 | S27: 17 | T27: "ATHM","08/31/2017" | U27: Negative | V27: Positive | W27: No | X27: 0 | AC27: 17 | AD27: "ATHM","08/31/2017" | AE27: Negative | AF27: Positive | AG27: No | AH27: 0 | AM27: 16 | AN27: SE,"06/30/2020" | AO27: Positive | AP27: Negative | AQ27: No | AR27: 0 | AW27: 17 | AX27: SE,"06/30/2020" | AY27: Positive | AZ27: Positive | BA27: No | BB27: 1
A28: 19 | B28: "CVNA","04/30/2019" | C28: Negative | D28: Positive | E28: No | F28: 0 | J28: 19 | K28: "CVNA","04/30/2019" | L28: Negative | M28: Positive | N28: No | O28: 0 | S28: 18 | T28: "CVRR","06/29/2018" | U28: Negative | V28: Positive | W28: No | X28: 0 | AC28: 18 | AD28: "CVRR","06/29/2018" | AE28: Negative | AF28: Negative | AG28: No | AH28: 1 | AM28: 17 | AN28: NTLA,"12/31/2020" | AO28: Positive | AP28: Positive | AQ28: No | AR28: 1 | AW28: 18 | AX28: NTLA,"12/31/2020" | AY28: Positive | AZ28: Positive | BA28: No | BB28: 1
A29: 20 | B29: "AIMT","11/30/2016" | C29: Negative | D29: Negative | E29: No | F29: 1 | J29: 20 | K29: "AIMT","11/30/2016" | L29: Negative | M29: Negative | N29: No | O29: 1 | S29: 19 | T29: "CVNA","04/30/2019" | U29: Negative | V29: Negative | W29: No | X29: 1 | AC29: 19 | AD29: "CVNA","04/30/2019" | AE29: Negative | AF29: Negative | AG29: No | AH29: 1 | AM29: 18 | AN29: MTDR,"03/31/2021" | AO29: Positive | AP29: Positive | AQ29: No | AR29: 1 | AW29: 19 | AX29: MTDR,"03/31/2021" | AY29: Positive | AZ29: Positive | BA29: No | BB29: 1
F30: =SUM(F9:F29) -> 15 | O30: =SUM(O9:O29) -> 14 | S30: 20 | T30: "AIMT","11/30/2016" | U30: Negative | V30: Negative | W30: No | X30: 1 | AC30: 20 | AD30: "AIMT","11/30/2016" | AE30: Negative | AF30: Negative | AG30: No | AH30: 1 | AM30: 19 | AN30: DOCU,"05/29/2020" | AO30: Positive | AP30: Positive | AQ30: No | AR30: 1 | AW30: 20 | AX30: DOCU,"05/29/2020" | AY30: Positive | AZ30: Positive | BA30: No | BB30: 1
X31: =SUM(X10:X30) -> 16 | AH31: =SUM(AH10:AH30) -> 17 | AI31: =SUM(AH10:AH14)+SUM(AH26:AH30) -> 7 | AM31: 20 | AN31: SIG,"10/30/2020" | AO31: Positive | AP31: Positive | AQ31: No | AR31: 1 | AW31: 21 | AX31: SIG,"10/30/2020" | AY31: Positive | AZ31: Positive | BA31: No | BB31: 1
D32: Total Accuracy | G32: =F30/A29 -> 0.75 | M32: Total Accuracy | P32: =O30/J29 -> 0.7 | AR32: =SUM(AR10:AR31) -> 12 | AS32: =SUM(AR10:AR14)+SUM(AR27:AR31) -> 6 | BB32: =SUM(BB10:BB31) -> 21 | BC32: =SUM(BB10:BB14)+SUM(BB27:BB31) -> 10
D33: Out of Set Accuracy | G33: =5/10 -> 0.5 | M33: Out of Set Accuracy | P33: =4/10 -> 0.4 | V33: Total Accuracy | Y33: =X31/S30 -> 0.8 | AF33: Total Accuracy | AI33: =AH31/AC30 -> 0.85 | AP33: Total Accuracy | AS33: =AR32/AM31 -> 0.6 | AZ33: Total Accuracy | BC33: =BB32/AW31 -> 1
V34: Out of Set Accuracy | Y34: =6/10 -> 0.6 | AF34: Out of Set Accuracy | AI34: =AI31/(AC30/2) -> 0.7 | AP34: Out of Set Accuracy | AS34: =AS32/(AM31/2) -> 0.6 | AZ34: Out of Set Accuracy | BC34: =BC32/(AW31/2) -> 0.9523809524
AF37: MODEL_VGG16 | AP37: MODEL_INCEPTION | AZ37: MODEL_RESNET50
AC38: LR | AD38: 1e-05 | AM38: LR | AN38: 1e-05 | AW38: LR | AX38: 1e-05
A39: LR | B39: 1e-05 | J39: LR | K39: 1e-05 | AC39: BATCH_SIZE | AD39: 128 | AM39: BATCH_SIZE | AN39: 128 | AP39: SANITY RUN | AW39: BATCH_SIZE | AX39: 128
A40: BATCH_SIZE | B40: 128 | J40: BATCH_SIZE | K40: 128 | AC40: EPOCHS | AD40: 50 | AM40: EPOCHS | AN40: 25 | AW40: EPOCHS | AX40: 200 | AZ40: INCREASED IMAGE QUALITY TO 100
A41: EPOCHS | B41: 50 | J41: EPOCHS | K41: 75 | AC41: DAYCOUNT | AD41: 252 | AM41: DAYCOUNT | AN41: 180 | AW41: DAYCOUNT | AX41: 180 | AZ41: RAN THROUGH INTERFACE
A42: DAYCOUNT | B42: 180 | J42: DAYCOUNT | K42: 180
C43: Expected | D43: Received | E43: In Training | F43: Correct | L43: Expected | M43: Received | N43: In Training | O43: Correct | AE43: Expected | AF43: Received | AG43: In Training | AH43: Correct | AO43: Expected | AP43: Received | AQ43: In Training | AR43: Correct | AY43: Expected | AZ43: Received | BA43: In Training | BB43: Correct
A44: =1 -> 1 | B44: "WTW","07/31/2017" | C44: Positive | D44: Negative | E44: No | F44: =IF(C44=D44,1,0) -> 0 | J44: =1 -> 1 | K44: "WTW","07/31/2017" | L44: Positive | M44: Negative | N44: No | O44: =IF(L44=M44,1,0) -> 0 | AC44: =1 -> 1 | AD44: "WTW","07/31/2017" | AE44: Positive | AF44: Negative | AG44: No | AH44: =IF(AE44=AF44,1,0) -> 0 | AM44: =1 -> 1 | AN44: CWH,"01/31/2020" | AO44: Negative | AP44: Positive | AQ44: No | AR44: =IF(AO44=AP44,1,0) -> 0 | AW44: =1 -> 1 | AX44: CWH,"01/31/2020" | AY44: Negative | AZ44: Negative | BA44: No | BB44: =IF(AY44=AZ44,1,0) -> 1
A45: =A44+1 -> 2 | B45: "TRHC","07/31/2018" | C45: Positive | D45: Positive | E45: No | F45: =IF(C45=D45,1,0) -> 1 | J45: =J44+1 -> 2 | K45: "TRHC","07/31/2018" | L45: Positive | M45: Positive | N45: No | O45: =IF(L45=M45,1,0) -> 1 | AC45: =AC44+1 -> 2 | AD45: "TRHC","07/31/2018" | AE45: Positive | AF45: Positive | AG45: No | AH45: =IF(AE45=AF45,1,0) -> 1 | AM45: =AM44+1 -> 2 | AN45: DISCA,"02/26/2021" | AO45: Negative | AP45: Positive | AQ45: No | AR45: =IF(AO45=AP45,1,0) -> 0 | AW45: =AW44+1 -> 2 | AX45: DISCA,"02/26/2021" | AY45: Negative | AZ45: Positive | BA45: No | BB45: =IF(AY45=AZ45,1,0) -> 0
A46: =A45+1 -> 3 | B46: "SHOP","03/31/2017" | C46: Positive | D46: Positive | E46: No | F46: 1 | J46: =J45+1 -> 3 | K46: "SHOP","03/31/2017" | L46: Positive | M46: Negative | N46: No | O46: 0 | AC46: =AC45+1 -> 3 | AD46: "SHOP","03/31/2017" | AE46: Positive | AF46: Negative | AG46: No | AH46: 0 | AM46: =AM45+1 -> 3 | AN46: ANAB,"02/28/2018" | AO46: Negative | AP46: Negative | AQ46: No | AR46: 1 | AW46: =AW45+1 -> 3 | AX46: ANAB,"02/28/2018" | AY46: Negative | AZ46: Positive | BA46: No | BB46: 0
A47: 4 | B47: "AMD","01/31/2017" | C47: Positive | D47: Positive | E47: No | F47: 1 | J47: 4 | K47: "AMD","01/31/2017" | L47: Positive | M47: Positive | N47: No | O47: 1 | AC47: 4 | AD47: "AMD","01/31/2017" | AE47: Positive | AF47: Negative | AG47: No | AH47: 0 | AM47: 4 | AN47: SPWR,"07/31/2017" | AO47: Negative | AP47: Positive | AQ47: No | AR47: 0 | AW47: 4 | AX47: SPWR,"07/31/2017" | AY47: Negative | AZ47: Positive | BA47: No | BB47: 0
A48: 5 | B48: "CRSP","03/29/2018" | C48: Positive | D48: Positive | E48: No | F48: 1 | J48: 5 | K48: "CRSP","03/29/2018" | L48: Positive | M48: Negative | N48: No | O48: 0 | AC48: 5 | AD48: "CRSP","03/29/2018" | AE48: Positive | AF48: Negative | AG48: No | AH48: 0 | AM48: 5 | AN48: DNLI,"12/31/2020" | AO48: Negative | AP48: Negative | AQ48: No | AR48: 1 | AW48: 5 | AX48: DNLI,"12/31/2020" | AY48: Negative | AZ48: Positive | BA48: No | BB48: 0
A49: 6 | B49: "DNR","06/29/2018" | C49: Positive | D49: Positive | E49: Yes | F49: 1 | J49: 6 | K49: "DNR","06/29/2018" | L49: Positive | M49: Positive | N49: Yes | O49: 1 | AC49: 6 | AD49: "DNR","06/29/2018" | AE49: Positive | AF49: Positive | AG49: Yes | AH49: 1 | AM49: 6 | AN49: IDTI,"11/30/2015" | AO49: Negative | AP49: Negative | AQ49: No | AR49: 1 | AW49: 6 | AX49: IDTI,"11/30/2015" | AY49: Negative | AZ49: Positive | BA49: No | BB49: 0
A50: 7 | B50: "BVN","05/31/2016" | C50: Positive | D50: Positive | E50: Yes | F50: 1 | J50: 7 | K50: "BVN","05/31/2016" | L50: Positive | M50: Positive | N50: Yes | O50: 1 | AC50: 7 | AD50: "BVN","05/31/2016" | AE50: Positive | AF50: Negative | AG50: Yes | AH50: 0 | AM50: 7 | AN50: PRO,"07/31/2019" | AO50: Negative | AP50: Negative | AQ50: Yes | AR50: 1 | AW50: 7 | AX50: PRO,"07/31/2019" | AY50: Negative | AZ50: Negative | BA50: Yes | BB50: 1
A51: 8 | B51: "TLRD","01/31/2018" | C51: Positive | D51: Positive | E51: Yes | F51: 1 | J51: 8 | K51: "TLRD","01/31/2018" | L51: Positive | M51: Positive | N51: Yes | O51: 1 | AC51: 8 | AD51: "TLRD","01/31/2018" | AE51: Positive | AF51: Positive | AG51: Yes | AH51: 1 | AM51: 8 | AN51: ACLS,"11/30/2017" | AO51: Negative | AP51: Positive | AQ51: Yes | AR51: 0 | AW51: 8 | AX51: ACLS,"11/30/2017" | AY51: Negative | AZ51: Negative | BA51: Yes | BB51: 1
A52: 9 | B52: "FRPT","07/31/2018" | C52: Positive | D52: Positive | E52: Yes | F52: 1 | J52: 9 | K52: "FRPT","07/31/2018" | L52: Positive | M52: Positive | N52: Yes | O52: 1 | AC52: 9 | AD52: "FRPT","07/31/2018" | AE52: Positive | AF52: Positive | AG52: Yes | AH52: 1 | AM52: 9 | AN52: PUMP,"12/29/2017" | AO52: Negative | AP52: Positive | AQ52: Yes | AR52: 0 | AW52: 9 | AX52: PUMP,"12/29/2017" | AY52: Negative | AZ52: Negative | BA52: Yes | BB52: 1
A53: 10 | B53: "NVCR","10/30/2020" | C53: Positive | D53: Positive | E53: Yes | F53: 1 | J53: 10 | K53: "NVCR","10/30/2020" | L53: Positive | M53: Positive | N53: Yes | O53: 1 | AC53: 10 | AD53: "NVCR","10/30/2020" | AE53: Positive | AF53: Negative | AG53: Yes | AH53: 0 | AM53: 10 | AN53: TDOC,"08/31/2018" | AO53: Negative | AP53: Negative | AQ53: Yes | AR53: 1 | AW53: 10 | AX53: TDOC,"08/31/2018" | AY53: Negative | AZ53: Negative | BA53: Yes | BB53: 1
AM54: 11 | AN54: ATHM,"08/31/2017" | AO54: Negative | AP54: Negative | AQ54: Yes | AR54: 1 | AW54: 11 | AX54: ATHM,"08/31/2017" | AY54: Negative | AZ54: Negative | BA54: Yes | BB54: 1
A55: =A53+1 -> 11 | B55: "TDOC","08/31/2018" | C55: Negative | D55: Negative | E55: Yes | F55: =IF(C55=D55,1,0) -> 1 | J55: =J53+1 -> 11 | K55: "TDOC","08/31/2018" | L55: Negative | M55: Negative | N55: Yes | O55: =IF(L55=M55,1,0) -> 1 | AC55: =AC53+1 -> 11 | AD55: "TDOC","08/31/2018" | AE55: Negative | AF55: Positive | AG55: Yes | AH55: =IF(AE55=AF55,1,0) -> 0
A56: =A55+1 -> 12 | B56: "WRD","05/31/2018" | C56: Negative | D56: Negative | E56: Yes | F56: 1 | J56: =J55+1 -> 12 | K56: "WRD","05/31/2018" | L56: Negative | M56: Negative | N56: Yes | O56: 1 | AC56: =AC55+1 -> 12 | AD56: "WRD","05/31/2018" | AE56: Negative | AF56: Negative | AG56: Yes | AH56: 1 | AM56: =AM53+1 -> 11 | AN56: DAC,"04/30/2021" | AO56: Positive | AP56: Negative | AQ56: Yes | AR56: =IF(AO56=AP56,1,0) -> 0 | AW56: =AW54+1 -> 12 | AX56: DAC,"04/30/2021" | AY56: Positive | AZ56: Positive | BA56: Yes | BB56: =IF(AY56=AZ56,1,0) -> 1
A57: =A56+1 -> 13 | B57: "FTCH","12/31/2020" | C57: Negative | D57: Negative | E57: Yes | F57: 1 | J57: =J56+1 -> 13 | K57: "FTCH","12/31/2020" | L57: Negative | M57: Negative | N57: Yes | O57: 1 | AC57: =AC56+1 -> 13 | AD57: "FTCH","12/31/2020" | AE57: Negative | AF57: Negative | AG57: Yes | AH57: 1 | AM57: =AM56+1 -> 12 | AN57: CRSP,"03/29/2018" | AO57: Positive | AP57: Positive | AQ57: Yes | AR57: 1 | AW57: =AW56+1 -> 13 | AX57: CRSP,"03/29/2018" | AY57: Positive | AZ57: Positive | BA57: Yes | BB57: 1
A58: 14 | B58: "COKE","10/30/2015" | C58: Negative | D58: Negative | E58: Yes | F58: 1 | J58: 14 | K58: "COKE","10/30/2015" | L58: Negative | M58: Negative | N58: Yes | O58: 1 | AC58: 14 | AD58: "COKE","10/30/2015" | AE58: Negative | AF58: Negative | AG58: Yes | AH58: 1 | AM58: =AM57+1 -> 13 | AN58: SITM,"08/31/2020" | AO58: Positive | AP58: Positive | AQ58: Yes | AR58: 1 | AW58: =AW57+1 -> 14 | AX58: SITM,"08/31/2020" | AY58: Positive | AZ58: Positive | BA58: Yes | BB58: 1
A59: 15 | B59: "BEDU","10/31/2017" | C59: Negative | D59: Positive | E59: Yes | F59: 0 | J59: 15 | K59: "BEDU","10/31/2017" | L59: Negative | M59: Negative | N59: Yes | O59: 1 | AC59: 15 | AD59: "BEDU","10/31/2017" | AE59: Negative | AF59: Negative | AG59: Yes | AH59: 1 | AM59: 14 | AN59: PDD,"05/29/2020" | AO59: Positive | AP59: Positive | AQ59: Yes | AR59: 1 | AW59: =AW58+1 -> 15 | AX59: PDD,"05/29/2020" | AY59: Positive | AZ59: Positive | BA59: Yes | BB59: 1
A60: 16 | B60: "WIX","07/31/2020" | C60: Negative | D60: Negative | E60: No | F60: 1 | J60: 16 | K60: "WIX","07/31/2020" | L60: Negative | M60: Negative | N60: No | O60: 1 | AC60: 16 | AD60: "WIX","07/31/2020" | AE60: Negative | AF60: Positive | AG60: No | AH60: 0 | AM60: 15 | AN60: BAND,"06/30/2020" | AO60: Positive | AP60: Positive | AQ60: Yes | AR60: 1 | AW60: 16 | AX60: BAND,"06/30/2020" | AY60: Positive | AZ60: Positive | BA60: Yes | BB60: 1
A61: 17 | B61: "ATHM","08/31/2017" | C61: Negative | D61: Positive | E61: No | F61: 0 | J61: 17 | K61: "ATHM","08/31/2017" | L61: Negative | M61: Positive | N61: No | O61: 0 | AC61: 17 | AD61: "ATHM","08/31/2017" | AE61: Negative | AF61: Negative | AG61: No | AH61: 1 | AM61: 16 | AN61: SE,"06/30/2020" | AO61: Positive | AP61: Negative | AQ61: No | AR61: 0 | AW61: 17 | AX61: SE,"06/30/2020" | AY61: Positive | AZ61: Positive | BA61: No | BB61: 1
A62: 18 | B62: "CVRR","06/29/2018" | C62: Negative | D62: Positive | E62: No | F62: 0 | J62: 18 | K62: "CVRR","06/29/2018" | L62: Negative | M62: Negative | N62: No | O62: 1 | AC62: 18 | AD62: "CVRR","06/29/2018" | AE62: Negative | AF62: Negative | AG62: No | AH62: 1 | AM62: 17 | AN62: NTLA,"12/31/2020" | AO62: Positive | AP62: Positive | AQ62: No | AR62: 1 | AW62: 18 | AX62: NTLA,"12/31/2020" | AY62: Positive | AZ62: Positive | BA62: No | BB62: 1
A63: 19 | B63: "CVNA","04/30/2019" | C63: Negative | D63: Negative | E63: No | F63: 1 | J63: 19 | K63: "CVNA","04/30/2019" | L63: Negative | M63: Negative | N63: No | O63: 1 | AC63: 19 | AD63: "CVNA","04/30/2019" | AE63: Negative | AF63: Negative | AG63: No | AH63: 1 | AM63: 18 | AN63: MTDR,"03/31/2021" | AO63: Positive | AP63: Negative | AQ63: No | AR63: 0 | AW63: 19 | AX63: MTDR,"03/31/2021" | AY63: Positive | AZ63: Negative | BA63: No | BB63: 0
A64: 20 | B64: "AIMT","11/30/2016" | C64: Negative | D64: Negative | E64: No | F64: 1 | J64: 20 | K64: "AIMT","11/30/2016" | L64: Negative | M64: Negative | N64: No | O64: 1 | AC64: 20 | AD64: "AIMT","11/30/2016" | AE64: Negative | AF64: Positive | AG64: No | AH64: 0 | AM64: 19 | AN64: DOCU,"05/29/2020" | AO64: Positive | AP64: Positive | AQ64: No | AR64: 1 | AW64: 20 | AX64: DOCU,"05/29/2020" | AY64: Positive | AZ64: Negative | BA64: No | BB64: 0
F65: =SUM(F44:F64) -> 16 | O65: =SUM(O44:O64) -> 16 | AH65: =SUM(AH44:AH64) -> 11 | AI65: =SUM(AH44:AH48)+SUM(AH60:AH64) -> 4 | AM65: 20 | AN65: SIG,"10/30/2020" | AO65: Positive | AP65: Negative | AQ65: No | AR65: 0 | AW65: 21 | AX65: SIG,"10/30/2020" | AY65: Positive | AZ65: Negative | BA65: No | BB65: 0
AR66: =SUM(AR44:AR65) -> 12 | AS66: =SUM(AR44:AR48)+SUM(AR61:AR65) -> 4 | BB66: =SUM(BB44:BB65) -> 13 | BC66: =SUM(BB44:BB48)+SUM(BB61:BB65) -> 3
D67: Total Accuracy | G67: =F65/A64 -> 0.8 | M67: Total Accuracy | P67: =O65/J64 -> 0.8 | AF67: Total Accuracy | AI67: =AH65/AC64 -> 0.55 | AP67: Total Accuracy | AS67: =AR66/AM65 -> 0.6 | AZ67: Total Accuracy | BC67: =BB66/AW65 -> 0.619047619
D68: Out of Set Accuracy | G68: =7/10 -> 0.7 | M68: Out of Set Accuracy | P68: =6/10 -> 0.6 | AF68: Out of Set Accuracy | AI68: =AI65/(AC64/2) -> 0.4 | AP68: Out of Set Accuracy | AS68: =AS66/(AM65/2) -> 0.4 | AZ68: Out of Set Accuracy | BC68: =BC66/(AW65/2) -> 0.2857142857
AF71: MODEL_VGG16 | AP71: MODEL_INCEPTION | AZ71: MODEL_RESNET50
AC72: LR | AD72: 1e-05 | AM72: LR | AN72: 1e-05 | AW72: LR | AX72: 1e-05
AC73: BATCH_SIZE | AD73: 128 | AM73: BATCH_SIZE | AN73: 128 | AW73: BATCH_SIZE | AX73: 128
AC74: EPOCHS | AD74: 50 | AM74: EPOCHS | AN74: 75 | AW74: EPOCHS | AX74: 200 | AZ74: INCREASED IMAGE QUALITY TO 100
AC75: DAYCOUNT | AD75: 90 | AM75: DAYCOUNT | AN75: 180 | AW75: DAYCOUNT | AX75: 180 | AZ75: RAN THROUGH PYTHON
AE77: Expected | AF77: Received | AG77: In Training | AH77: Correct | AO77: Expected | AP77: Received | AQ77: In Training | AR77: Correct | AY77: Expected | AZ77: Received | BA77: In Training | BB77: Correct
AC78: =1 -> 1 | AD78: "WTW","07/31/2017" | AE78: Positive | AF78: Negative | AG78: No | AH78: =IF(AE78=AF78,1,0) -> 0 | AM78: =1 -> 1 | AN78: CWH,"01/31/2020" | AO78: Negative | AP78: Negative | AQ78: No | AR78: =IF(AO78=AP78,1,0) -> 1 | AW78: =1 -> 1 | AX78: CWH,"01/31/2020" | AY78: Negative | AZ78: Negative | BA78: No | BB78: =IF(AY78=AZ78,1,0) -> 1
AC79: =AC78+1 -> 2 | AD79: "TRHC","07/31/2018" | AE79: Positive | AF79: Negative | AG79: No | AH79: =IF(AE79=AF79,1,0) -> 0 | AM79: =AM78+1 -> 2 | AN79: DISCA,"02/26/2021" | AO79: Negative | AP79: Negative | AQ79: No | AR79: =IF(AO79=AP79,1,0) -> 1 | AW79: =AW78+1 -> 2 | AX79: DISCA,"02/26/2021" | AY79: Negative | AZ79: Positive | BA79: No | BB79: =IF(AY79=AZ79,1,0) -> 0
AC80: =AC79+1 -> 3 | AD80: "SHOP","03/31/2017" | AE80: Positive | AF80: Negative | AG80: No | AH80: 0 | AM80: =AM79+1 -> 3 | AN80: ANAB,"02/28/2018" | AO80: Negative | AP80: Negative | AQ80: No | AR80: 1 | AW80: =AW79+1 -> 3 | AX80: ANAB,"02/28/2018" | AY80: Negative | AZ80: Positive | BA80: No | BB80: 0
AC81: 4 | AD81: "AMD","01/31/2017" | AE81: Positive | AF81: Negative | AG81: No | AH81: 0 | AM81: 4 | AN81: SPWR,"07/31/2017" | AO81: Negative | AP81: Negative | AQ81: No | AR81: 1 | AW81: 4 | AX81: SPWR,"07/31/2017" | AY81: Negative | AZ81: Positive | BA81: No | BB81: 0
AC82: 5 | AD82: "CRSP","03/29/2018" | AE82: Positive | AF82: Negative | AG82: No | AH82: 0 | AM82: 5 | AN82: DNLI,"12/31/2020" | AO82: Negative | AP82: Negative | AQ82: No | AR82: 1 | AW82: 5 | AX82: DNLI,"12/31/2020" | AY82: Negative | AZ82: Positive | BA82: No | BB82: 0
AC83: 6 | AD83: "DNR","06/29/2018" | AE83: Positive | AF83: Negative | AG83: Yes | AH83: 0 | AM83: 6 | AN83: IDTI,"11/30/2015" | AO83: Negative | AP83: Negative | AQ83: No | AR83: 1 | AW83: 6 | AX83: IDTI,"11/30/2015" | AY83: Negative | AZ83: Positive | BA83: No | BB83: 0
AC84: 7 | AD84: "BVN","05/31/2016" | AE84: Positive | AF84: Negative | AG84: Yes | AH84: 0 | AM84: 7 | AN84: PRO,"07/31/2019" | AO84: Negative | AP84: Negative | AQ84: Yes | AR84: 1 | AW84: 7 | AX84: PRO,"07/31/2019" | AY84: Negative | AZ84: Negative | BA84: Yes | BB84: 1
AC85: 8 | AD85: "TLRD","01/31/2018" | AE85: Positive | AF85: Negative | AG85: Yes | AH85: 0 | AM85: 8 | AN85: ACLS,"11/30/2017" | AO85: Negative | AP85: Negative | AQ85: Yes | AR85: 1 | AW85: 8 | AX85: ACLS,"11/30/2017" | AY85: Negative | AZ85: Negative | BA85: Yes | BB85: 1
AC86: 9 | AD86: "FRPT","07/31/2018" | AE86: Positive | AF86: Negative | AG86: Yes | AH86: 0 | AM86: 9 | AN86: PUMP,"12/29/2017" | AO86: Negative | AP86: Negative | AQ86: Yes | AR86: 1 | AW86: 9 | AX86: PUMP,"12/29/2017" | AY86: Negative | AZ86: Negative | BA86: Yes | BB86: 1
AC87: 10 | AD87: "NVCR","10/30/2020" | AE87: Positive | AF87: Negative | AG87: Yes | AH87: 0 | AM87: 10 | AN87: TDOC,"08/31/2018" | AO87: Negative | AP87: Negative | AQ87: Yes | AR87: 1 | AW87: 10 | AX87: TDOC,"08/31/2018" | AY87: Negative | AZ87: Negative | BA87: Yes | BB87: 1
AM88: 11 | AN88: ATHM,"08/31/2017" | AO88: Negative | AP88: Positive | AQ88: Yes | AR88: 0 | AW88: 11 | AX88: ATHM,"08/31/2017" | AY88: Negative | AZ88: Negative | BA88: Yes | BB88: 1
AC89: =AC87+1 -> 11 | AD89: "TDOC","08/31/2018" | AE89: Negative | AF89: Negative | AG89: Yes | AH89: =IF(AE89=AF89,1,0) -> 1
AC90: =AC89+1 -> 12 | AD90: "WRD","05/31/2018" | AE90: Negative | AF90: Negative | AG90: Yes | AH90: 1 | AM90: =AM88+1 -> 12 | AN90: DAC,"04/30/2021" | AO90: Positive | AP90: Negative | AQ90: Yes | AR90: =IF(AO90=AP90,1,0) -> 0 | AW90: =AW88+1 -> 12 | AX90: DAC,"04/30/2021" | AY90: Positive | AZ90: Positive | BA90: Yes | BB90: =IF(AY90=AZ90,1,0) -> 1
AC91: =AC90+1 -> 13 | AD91: "FTCH","12/31/2020" | AE91: Negative | AF91: Negative | AG91: Yes | AH91: 1 | AM91: =AM90+1 -> 13 | AN91: CRSP,"03/29/2018" | AO91: Positive | AP91: Negative | AQ91: Yes | AR91: 0 | AW91: =AW90+1 -> 13 | AX91: CRSP,"03/29/2018" | AY91: Positive | AZ91: Positive | BA91: Yes | BB91: 1
AC92: 14 | AD92: "COKE","10/30/2015" | AE92: Negative | AF92: Negative | AG92: Yes | AH92: 1 | AM92: =AM91+1 -> 14 | AN92: SITM,"08/31/2020" | AO92: Positive | AP92: Positive | AQ92: Yes | AR92: 1 | AW92: =AW91+1 -> 14 | AX92: SITM,"08/31/2020" | AY92: Positive | AZ92: Positive | BA92: Yes | BB92: 1
AC93: 15 | AD93: "BEDU","10/31/2017" | AE93: Negative | AF93: Negative | AG93: Yes | AH93: 1 | AM93: 15 | AN93: PDD,"05/29/2020" | AO93: Positive | AP93: Negative | AQ93: Yes | AR93: 0 | AW93: =AW92+1 -> 15 | AX93: PDD,"05/29/2020" | AY93: Positive | AZ93: Positive | BA93: Yes | BB93: 1
AC94: 16 | AD94: "WIX","07/31/2020" | AE94: Negative | AF94: Negative | AG94: No | AH94: 1 | AM94: 16 | AN94: BAND,"06/30/2020" | AO94: Positive | AP94: Positive | AQ94: Yes | AR94: 1 | AW94: 16 | AX94: BAND,"06/30/2020" | AY94: Positive | AZ94: Positive | BA94: Yes | BB94: 1
AC95: 17 | AD95: "ATHM","08/31/2017" | AE95: Negative | AF95: Positive | AG95: No | AH95: 0 | AM95: 17 | AN95: SE,"06/30/2020" | AO95: Positive | AP95: Positive | AQ95: No | AR95: 1 | AW95: 17 | AX95: SE,"06/30/2020" | AY95: Positive | AZ95: Positive | BA95: No | BB95: 1
AC96: 18 | AD96: "CVRR","06/29/2018" | AE96: Negative | AF96: Negative | AG96: No | AH96: 1 | AM96: 18 | AN96: NTLA,"12/31/2020" | AO96: Positive | AP96: Positive | AQ96: No | AR96: 1 | AW96: 18 | AX96: NTLA,"12/31/2020" | AY96: Positive | AZ96: Positive | BA96: No | BB96: 1
AC97: 19 | AD97: "CVNA","04/30/2019" | AE97: Negative | AF97: Negative | AG97: No | AH97: 1 | AM97: 19 | AN97: MTDR,"03/31/2021" | AO97: Positive | AP97: Positive | AQ97: No | AR97: 1 | AW97: 19 | AX97: MTDR,"03/31/2021" | AY97: Positive | AZ97: Negative | BA97: No | BB97: 0
AC98: 20 | AD98: "AIMT","11/30/2016" | AE98: Negative | AF98: Positive | AG98: No | AH98: 0 | AM98: 20 | AN98: DOCU,"05/29/2020" | AO98: Positive | AP98: Negative | AQ98: No | AR98: 0 | AW98: 20 | AX98: DOCU,"05/29/2020" | AY98: Positive | AZ98: Negative | BA98: No | BB98: 0
AH99: =SUM(AH78:AH98) -> 8 | AI99: =SUM(AH78:AH82)+SUM(AH94:AH98) -> 3 | AM99: 21 | AN99: SIG,"10/30/2020" | AO99: Positive | AP99: Positive | AQ99: No | AR99: 1 | AW99: 21 | AX99: SIG,"10/30/2020" | AY99: Positive | AZ99: Negative | BA99: No | BB99: 0
AR100: =SUM(AR78:AR99) -> 16 | AS100: =SUM(AR78:AR82)+SUM(AR95:AR99) -> 9 | BB100: =SUM(BB78:BB99) -> 13 | BC100: =SUM(BB78:BB82)+SUM(BB95:BB99) -> 3
AF101: Total Accuracy | AI101: =AH99/AC98 -> 0.4 | AP101: Total Accuracy | AS101: =AR100/AM99 -> 0.7619047619 | AZ101: Total Accuracy | BC101: =BB100/AW99 -> 0.619047619
AF102: Out of Set Accuracy | AI102: =AI99/(AC98/2) -> 0.3 | AP102: Out of Set Accuracy | AS102: =AS100/(AM99/2) -> 0.8571428571 | AZ102: Out of Set Accuracy | BC102: =BC100/(AW99/2) -> 0.2857142857
AF105: MODEL_VGG16 | AP105: MODEL_INCEPTION | AZ105: MODEL_RESNET50
AC106: LR | AD106: 1e-05 | AM106: LR | AN106: 1e-05 | AW106: LR | AX106: 1e-05
AC107: BATCH_SIZE | AD107: 128 | AM107: BATCH_SIZE | AN107: 128 | AW107: BATCH_SIZE | AX107: 128
AC108: EPOCHS | AD108: 50 | AM108: EPOCHS | AN108: 125 | AW108: EPOCHS | AX108: 200 | AZ108: REMOVED QUALITY 100
AC109: DAYCOUNT | AD109: 180 | AM109: DAYCOUNT | AN109: 180 | AW109: DAYCOUNT | AX109: 180 | AZ109: RAN THROUGH INTERFACE
AE111: Expected | AF111: Received | AG111: In Training | AH111: Correct | AO111: Expected | AP111: Received | AQ111: In Training | AR111: Correct | AY111: Expected | AZ111: Received | BA111: In Training | BB111: Correct
AC112: =1 -> 1 | AD112: CWH,"01/31/2020" | AE112: Negative | AF112: Negative | AG112: No | AH112: =IF(AE112=AF112,1,0) -> 1 | AM112: =1 -> 1 | AN112: CWH,"01/31/2020" | AO112: Negative | AP112: Negative | AQ112: No | AR112: =IF(AO112=AP112,1,0) -> 1 | AW112: =1 -> 1 | AX112: CWH,"01/31/2020" | AY112: Negative | AZ112: Negative | BA112: No | BB112: =IF(AY112=AZ112,1,0) -> 1
AC113: =AC112+1 -> 2 | AD113: DISCA,"02/26/2021" | AE113: Negative | AF113: Negative | AG113: No | AH113: =IF(AE113=AF113,1,0) -> 1 | AM113: =AM112+1 -> 2 | AN113: DISCA,"02/26/2021" | AO113: Negative | AP113: Negative | AQ113: No | AR113: =IF(AO113=AP113,1,0) -> 1 | AW113: =AW112+1 -> 2 | AX113: DISCA,"02/26/2021" | AY113: Negative | AZ113: Positive | BA113: No | BB113: =IF(AY113=AZ113,1,0) -> 0
AC114: =AC113+1 -> 3 | AD114: ANAB,"02/28/2018" | AE114: Negative | AF114: Negative | AG114: No | AH114: 1 | AM114: =AM113+1 -> 3 | AN114: ANAB,"02/28/2018" | AO114: Negative | AP114: Negative | AQ114: No | AR114: 1 | AW114: =AW113+1 -> 3 | AX114: ANAB,"02/28/2018" | AY114: Negative | AZ114: Positive | BA114: No | BB114: 0
AC115: 4 | AD115: SPWR,"07/31/2017" | AE115: Negative | AF115: Negative | AG115: No | AH115: 1 | AM115: 4 | AN115: SPWR,"07/31/2017" | AO115: Negative | AP115: Positive | AQ115: No | AR115: 0 | AW115: 4 | AX115: SPWR,"07/31/2017" | AY115: Negative | AZ115: Positive | BA115: No | BB115: 0
AC116: 5 | AD116: DNLI,"12/31/2020" | AE116: Negative | AF116: Negative | AG116: No | AH116: 1 | AM116: 5 | AN116: DNLI,"12/31/2020" | AO116: Negative | AP116: Positive | AQ116: No | AR116: 0 | AW116: 5 | AX116: DNLI,"12/31/2020" | AY116: Negative | AZ116: Positive | BA116: No | BB116: 0
AC117: 6 | AD117: IDTI,"11/30/2015" | AE117: Negative | AF117: Negative | AG117: No | AH117: 1 | AM117: 6 | AN117: IDTI,"11/30/2015" | AO117: Negative | AP117: Negative | AQ117: No | AR117: 1 | AW117: 6 | AX117: IDTI,"11/30/2015" | AY117: Negative | AZ117: Positive | BA117: No | BB117: 0
AC118: 7 | AD118: PRO,"07/31/2019" | AE118: Negative | AF118: Negative | AG118: Yes | AH118: 1 | AM118: 7 | AN118: PRO,"07/31/2019" | AO118: Negative | AP118: Negative | AQ118: Yes | AR118: 1 | AW118: 7 | AX118: PRO,"07/31/2019" | AY118: Negative | AZ118: Negative | BA118: Yes | BB118: 1
AC119: 8 | AD119: ACLS,"11/30/2017" | AE119: Negative | AF119: Negative | AG119: Yes | AH119: 1 | AM119: 8 | AN119: ACLS,"11/30/2017" | AO119: Negative | AP119: Negative | AQ119: Yes | AR119: 1 | AW119: 8 | AX119: ACLS,"11/30/2017" | AY119: Negative | AZ119: Negative | BA119: Yes | BB119: 1
AC120: 9 | AD120: PUMP,"12/29/2017" | AE120: Negative | AF120: Negative | AG120: Yes | AH120: 1 | AM120: 9 | AN120: PUMP,"12/29/2017" | AO120: Negative | AP120: Negative | AQ120: Yes | AR120: 1 | AW120: 9 | AX120: PUMP,"12/29/2017" | AY120: Negative | AZ120: Negative | BA120: Yes | BB120: 1
AC121: 10 | AD121: TDOC,"08/31/2018" | AE121: Negative | AF121: Negative | AG121: Yes | AH121: 1 | AM121: 10 | AN121: TDOC,"08/31/2018" | AO121: Negative | AP121: Negative | AQ121: Yes | AR121: 1 | AW121: 10 | AX121: TDOC,"08/31/2018" | AY121: Negative | AZ121: Negative | BA121: Yes | BB121: 1
AC122: 11 | AD122: ATHM,"08/31/2017" | AE122: Negative | AF122: Positive | AG122: Yes | AH122: 0 | AM122: 11 | AN122: ATHM,"08/31/2017" | AO122: Negative | AP122: Negative | AQ122: Yes | AR122: 1 | AW122: 11 | AX122: ATHM,"08/31/2017" | AY122: Negative | AZ122: Negative | BA122: Yes | BB122: 1
AC124: =AC122+1 -> 12 | AD124: DAC,"04/30/2021" | AE124: Positive | AF124: Negative | AG124: Yes | AH124: =IF(AE124=AF124,1,0) -> 0 | AM124: =AM121+1 -> 11 | AN124: DAC,"04/30/2021" | AO124: Positive | AP124: Negative | AQ124: Yes | AR124: =IF(AO124=AP124,1,0) -> 0 | AW124: =AW122+1 -> 12 | AX124: DAC,"04/30/2021" | AY124: Positive | AZ124: Positive | BA124: Yes | BB124: =IF(AY124=AZ124,1,0) -> 1
AC125: =AC124+1 -> 13 | AD125: CRSP,"03/29/2018" | AE125: Positive | AF125: Negative | AG125: Yes | AH125: 0 | AM125: =AM124+1 -> 12 | AN125: CRSP,"03/29/2018" | AO125: Positive | AP125: Negative | AQ125: Yes | AR125: 0 | AW125: =AW124+1 -> 13 | AX125: CRSP,"03/29/2018" | AY125: Positive | AZ125: Positive | BA125: Yes | BB125: 1
AC126: =AC125+1 -> 14 | AD126: SITM,"08/31/2020" | AE126: Positive | AF126: Positive | AG126: Yes | AH126: 1 | AM126: =AM125+1 -> 13 | AN126: SITM,"08/31/2020" | AO126: Positive | AP126: Negative | AQ126: Yes | AR126: 0 | AW126: =AW125+1 -> 14 | AX126: SITM,"08/31/2020" | AY126: Positive | AZ126: Negative | BA126: Yes | BB126: 0
AC127: 15 | AD127: PDD,"05/29/2020" | AE127: Positive | AF127: Positive | AG127: Yes | AH127: 1 | AM127: 14 | AN127: PDD,"05/29/2020" | AO127: Positive | AP127: Negative | AQ127: Yes | AR127: 0 | AW127: =AW126+1 -> 15 | AX127: PDD,"05/29/2020" | AY127: Positive | AZ127: Positive | BA127: Yes | BB127: 1
AC128: 16 | AD128: BAND,"06/30/2020" | AE128: Positive | AF128: Positive | AG128: Yes | AH128: 1 | AM128: 15 | AN128: BAND,"06/30/2020" | AO128: Positive | AP128: Positive | AQ128: Yes | AR128: 1 | AW128: 16 | AX128: BAND,"06/30/2020" | AY128: Positive | AZ128: Positive | BA128: Yes | BB128: 1
AC129: 17 | AD129: SE,"06/30/2020" | AE129: Positive | AF129: Positive | AG129: No | AH129: 1 | AM129: 16 | AN129: SE,"06/30/2020" | AO129: Positive | AP129: Negative | AQ129: No | AR129: 0 | AW129: 17 | AX129: SE,"06/30/2020" | AY129: Positive | AZ129: Positive | BA129: No | BB129: 1
AC130: 18 | AD130: NTLA,"12/31/2020" | AE130: Positive | AF130: Positive | AG130: No | AH130: 1 | AM130: 17 | AN130: NTLA,"12/31/2020" | AO130: Positive | AP130: Negative | AQ130: No | AR130: 0 | AW130: 18 | AX130: NTLA,"12/31/2020" | AY130: Positive | AZ130: Positive | BA130: No | BB130: 1
AC131: 19 | AD131: MTDR,"03/31/2021" | AE131: Positive | AF131: Positive | AG131: No | AH131: 1 | AM131: 18 | AN131: MTDR,"03/31/2021" | AO131: Positive | AP131: Negative | AQ131: No | AR131: 0 | AW131: 19 | AX131: MTDR,"03/31/2021" | AY131: Positive | AZ131: Negative | BA131: No | BB131: 0
AC132: 20 | AD132: DOCU,"05/29/2020" | AE132: Positive | AF132: Positive | AG132: No | AH132: 1 | AM132: 19 | AN132: DOCU,"05/29/2020" | AO132: Positive | AP132: Negative | AQ132: No | AR132: 0 | AW132: 20 | AX132: DOCU,"05/29/2020" | AY132: Positive | AZ132: Negative | BA132: No | BB132: 0
AC133: 21 | AD133: SIG,"10/30/2020" | AE133: Positive | AF133: Positive | AG133: No | AH133: 1 | AM133: 20 | AN133: SIG,"10/30/2020" | AO133: Positive | AP133: Negative | AQ133: No | AR133: 0 | AW133: 21 | AX133: SIG,"10/30/2020" | AY133: Positive | AZ133: Positive | BA133: No | BB133: 1
AH134: =SUM(AH112:AH133) -> 18 | AI134: =SUM(AH112:AH116)+SUM(AH129:AH133) -> 10 | AR134: =SUM(AR112:AR133) -> 10 | AS134: =SUM(AR112:AR116)+SUM(AR129:AR133) -> 3 | BB134: =SUM(BB112:BB133) -> 13 | BC134: =SUM(BB112:BB116)+SUM(BB129:BB133) -> 4
AF135: Total Accuracy | AI135: =AH134/AC133 -> 0.8571428571 | AP135: Total Accuracy | AS135: =AR134/AM133 -> 0.5 | AZ135: Total Accuracy | BC135: =BB134/AW133 -> 0.619047619
AF136: Out of Set Accuracy | AI136: =AI134/(AC133/2) -> 0.9523809524 | AP136: Out of Set Accuracy | AS136: =AS134/(AM133/2) -> 0.3 | AZ136: Out of Set Accuracy | BC136: =BC134/(AW133/2) -> 0.380952381
AF139: MODEL_VGG16 | AZ139: MODEL_RESNET50
AC140: LR | AD140: 1e-05 | AW140: LR | AX140: 1e-05
AC141: BATCH_SIZE | AD141: 128 | AW141: BATCH_SIZE | AX141: 128
AC142: EPOCHS | AD142: 75 | AW142: EPOCHS | AX142: 200 | AZ142: REMOVED QUALITY 100
AC143: DAYCOUNT | AD143: 180 | AW143: DAYCOUNT | AX143: 180 | AZ143: RAN THROUGH PYTHON
AE145: Expected | AF145: Received | AG145: In Training | AH145: Correct | AY145: Expected | AZ145: Received | BA145: In Training | BB145: Correct
AC146: =1 -> 1 | AD146: CWH,"01/31/2020" | AE146: Negative | AF146: Negative | AG146: No | AH146: =IF(AE146=AF146,1,0) -> 1 | AW146: =1 -> 1 | AX146: CWH,"01/31/2020" | AY146: Negative | AZ146: Negative | BA146: No | BB146: =IF(AY146=AZ146,1,0) -> 1
AC147: =AC146+1 -> 2 | AD147: DISCA,"02/26/2021" | AE147: Negative | AF147: Negative | AG147: No | AH147: =IF(AE147=AF147,1,0) -> 1 | AW147: =AW146+1 -> 2 | AX147: DISCA,"02/26/2021" | AY147: Negative | AZ147: Positive | BA147: No | BB147: =IF(AY147=AZ147,1,0) -> 0
AC148: =AC147+1 -> 3 | AD148: ANAB,"02/28/2018" | AE148: Negative | AF148: Negative | AG148: No | AH148: 1 | AW148: =AW147+1 -> 3 | AX148: ANAB,"02/28/2018" | AY148: Negative | AZ148: Positive | BA148: No | BB148: 0
AC149: 4 | AD149: SPWR,"07/31/2017" | AE149: Negative | AF149: Negative | AG149: No | AH149: 1 | AW149: 4 | AX149: SPWR,"07/31/2017" | AY149: Negative | AZ149: Positive | BA149: No | BB149: 0
AC150: 5 | AD150: DNLI,"12/31/2020" | AE150: Negative | AF150: Negative | AG150: No | AH150: 1 | AW150: 5 | AX150: DNLI,"12/31/2020" | AY150: Negative | AZ150: Positive | BA150: No | BB150: 0
AC151: 6 | AD151: IDTI,"11/30/2015" | AE151: Negative | AF151: Negative | AG151: No | AH151: 1 | AW151: 6 | AX151: IDTI,"11/30/2015" | AY151: Negative | AZ151: Positive | BA151: No | BB151: 0
AC152: 7 | AD152: PRO,"07/31/2019" | AE152: Negative | AF152: Negative | AG152: Yes | AH152: 1 | AW152: 7 | AX152: PRO,"07/31/2019" | AY152: Negative | AZ152: Negative | BA152: Yes | BB152: 1
AC153: 8 | AD153: ACLS,"11/30/2017" | AE153: Negative | AF153: Negative | AG153: Yes | AH153: 1 | AW153: 8 | AX153: ACLS,"11/30/2017" | AY153: Negative | AZ153: Negative | BA153: Yes | BB153: 1
AC154: 9 | AD154: PUMP,"12/29/2017" | AE154: Negative | AF154: Negative | AG154: Yes | AH154: 1 | AW154: 9 | AX154: PUMP,"12/29/2017" | AY154: Negative | AZ154: Negative | BA154: Yes | BB154: 1
AC155: 10 | AD155: TDOC,"08/31/2018" | AE155: Negative | AF155: Negative | AG155: Yes | AH155: 1 | AW155: 10 | AX155: TDOC,"08/31/2018" | AY155: Negative | AZ155: Negative | BA155: Yes | BB155: 1
AC156: 11 | AD156: ATHM,"08/31/2017" | AE156: Negative | AF156: Positive | AG156: Yes | AH156: 0 | AW156: 11 | AX156: ATHM,"08/31/2017" | AY156: Negative | AZ156: Negative | BA156: Yes | BB156: 1
AC158: =AC155+1 -> 11 | AD158: DAC,"04/30/2021" | AE158: Positive | AF158: Negative | AG158: Yes | AH158: =IF(AE158=AF158,1,0) -> 0 | AW158: =AW156+1 -> 12 | AX158: DAC,"04/30/2021" | AY158: Positive | AZ158: Positive | BA158: Yes | BB158: =IF(AY158=AZ158,1,0) -> 1
AC159: =AC158+1 -> 12 | AD159: CRSP,"03/29/2018" | AE159: Positive | AF159: Negative | AG159: Yes | AH159: 0 | AW159: =AW158+1 -> 13 | AX159: CRSP,"03/29/2018" | AY159: Positive | AZ159: Positive | BA159: Yes | BB159: 1
AC160: =AC159+1 -> 13 | AD160: SITM,"08/31/2020" | AE160: Positive | AF160: Positive | AG160: Yes | AH160: 1 | AW160: =AW159+1 -> 14 | AX160: SITM,"08/31/2020" | AY160: Positive | AZ160: Negative | BA160: Yes | BB160: 0
AC161: 14 | AD161: PDD,"05/29/2020" | AE161: Positive | AF161: Positive | AG161: Yes | AH161: 1 | AW161: =AW160+1 -> 15 | AX161: PDD,"05/29/2020" | AY161: Positive | AZ161: Positive | BA161: Yes | BB161: 1
AC162: 15 | AD162: BAND,"06/30/2020" | AE162: Positive | AF162: Positive | AG162: Yes | AH162: 1 | AW162: 16 | AX162: BAND,"06/30/2020" | AY162: Positive | AZ162: Positive | BA162: Yes | BB162: 1
AC163: 16 | AD163: SE,"06/30/2020" | AE163: Positive | AF163: Positive | AG163: No | AH163: 1 | AW163: 17 | AX163: SE,"06/30/2020" | AY163: Positive | AZ163: Positive | BA163: No | BB163: 1
AC164: 17 | AD164: NTLA,"12/31/2020" | AE164: Positive | AF164: Positive | AG164: No | AH164: 1 | AW164: 18 | AX164: NTLA,"12/31/2020" | AY164: Positive | AZ164: Positive | BA164: No | BB164: 1
AC165: 18 | AD165: MTDR,"03/31/2021" | AE165: Positive | AF165: Positive | AG165: No | AH165: 1 | AW165: 19 | AX165: MTDR,"03/31/2021" | AY165: Positive | AZ165: Negative | BA165: No | BB165: 0
AC166: 19 | AD166: DOCU,"05/29/2020" | AE166: Positive | AF166: Positive | AG166: No | AH166: 1 | AW166: 20 | AX166: DOCU,"05/29/2020" | AY166: Positive | AZ166: Negative | BA166: No | BB166: 0
AC167: 20 | AD167: SIG,"10/30/2020" | AE167: Positive | AF167: Positive | AG167: No | AH167: 1 | AW167: 21 | AX167: SIG,"10/30/2020" | AY167: Positive | AZ167: Positive | BA167: No | BB167: 1
AH168: =SUM(AH146:AH167) -> 18 | AI168: =SUM(AH146:AH150)+SUM(AH163:AH167) -> 10 | BB168: =SUM(BB146:BB167) -> 13 | BC168: =SUM(BB146:BB150)+SUM(BB163:BB167) -> 4
AF169: Total Accuracy | AI169: =AH168/AC167 -> 0.9 | AZ169: Total Accuracy | BC169: =BB168/AW167 -> 0.619047619
AF170: Out of Set Accuracy | AI170: =AI168/(AC167/2) -> 1 | AZ170: Out of Set Accuracy | BC170: =BC168/(AW167/2) -> 0.380952381
AF173: MODEL_VGG16 | AZ173: MODEL_RESNET50
AC174: LR | AD174: 1e-05 | AW174: LR | AX174: 1e-05
AC175: BATCH_SIZE | AD175: 128 | AW175: BATCH_SIZE | AX175: 128
AC176: EPOCHS | AD176: 50 | AF176: SANITY | AW176: EPOCHS | AX176: 200 | AZ176: RUNNING SAVED MODEL FROM C:\GIT\DEEPLEARNING\MODELS
AC177: DAYCOUNT | AD177: 180 | AW177: DAYCOUNT | AX177: 180 | AZ177: ON GANYMEDE
AE179: Expected | AF179: Received | AG179: In Training | AH179: Correct | AY179: Expected | AZ179: Received | BA179: In Training | BB179: Correct
AC180: =1 -> 1 | AD180: CWH,"01/31/2020" | AE180: Negative | AF180: Negative | AG180: No | AH180: =IF(AE180=AF180,1,0) -> 1 | AW180: =1 -> 1 | AX180: CWH,"01/31/2020" | AY180: Negative | AZ180: Negative | BA180: No | BB180: =IF(AY180=AZ180,1,0) -> 1
AC181: =AC180+1 -> 2 | AD181: DISCA,"02/26/2021" | AE181: Negative | AF181: Positive | AG181: No | AH181: =IF(AE181=AF181,1,0) -> 0 | AW181: =AW180+1 -> 2 | AX181: DISCA,"02/26/2021" | AY181: Negative | AZ181: Negative | BA181: No | BB181: =IF(AY181=AZ181,1,0) -> 1
AC182: =AC181+1 -> 3 | AD182: ANAB,"02/28/2018" | AE182: Negative | AF182: Positive | AG182: No | AH182: 0 | AW182: =AW181+1 -> 3 | AX182: ANAB,"02/28/2018" | AY182: Negative | AZ182: Negative | BA182: No | BB182: 1
AC183: 4 | AD183: SPWR,"07/31/2017" | AE183: Negative | AF183: Negative | AG183: No | AH183: 1 | AW183: 4 | AX183: SPWR,"07/31/2017" | AY183: Negative | AZ183: Negative | BA183: No | BB183: 1
AC184: 5 | AD184: DNLI,"12/31/2020" | AE184: Negative | AF184: Positive | AG184: No | AH184: 0 | AW184: 5 | AX184: DNLI,"12/31/2020" | AY184: Negative | AZ184: Negative | BA184: No | BB184: 1
AC185: 6 | AD185: IDTI,"11/30/2015" | AE185: Negative | AF185: Positive | AG185: No | AH185: 0 | AW185: 6 | AX185: IDTI,"11/30/2015" | AY185: Negative | AZ185: Negative | BA185: No | BB185: 1
AC186: 7 | AD186: PRO,"07/31/2019" | AE186: Negative | AF186: Negative | AG186: Yes | AH186: 1 | AW186: 7 | AX186: PRO,"07/31/2019" | AY186: Negative | AZ186: Negative | BA186: Yes | BB186: 1
AC187: 8 | AD187: ACLS,"11/30/2017" | AE187: Negative | AF187: Negative | AG187: Yes | AH187: 1 | AW187: 8 | AX187: ACLS,"11/30/2017" | AY187: Negative | AZ187: Negative | BA187: Yes | BB187: 1
AC188: 9 | AD188: PUMP,"12/29/2017" | AE188: Negative | AF188: Negative | AG188: Yes | AH188: 1 | AW188: 9 | AX188: PUMP,"12/29/2017" | AY188: Negative | AZ188: Negative | BA188: Yes | BB188: 1
AC189: 10 | AD189: TDOC,"08/31/2018" | AE189: Negative | AF189: Negative | AG189: Yes | AH189: 1 | AW189: 10 | AX189: TDOC,"08/31/2018" | AY189: Negative | AZ189: Negative | BA189: Yes | BB189: 1
AC190: 11 | AD190: ATHM,"08/31/2017" | AE190: Negative | AF190: Negative | AG190: Yes | AH190: 1 | AW190: 11 | AX190: ATHM,"08/31/2017" | AY190: Negative | AZ190: Negative | BA190: Yes | BB190: 1
AC192: =AC190+1 -> 12 | AD192: DAC,"04/30/2021" | AE192: Positive | AF192: Positive | AG192: Yes | AH192: =IF(AE192=AF192,1,0) -> 1 | AW192: =AW190+1 -> 12 | AX192: DAC,"04/30/2021" | AY192: Positive | AZ192: Positive | BA192: Yes | BB192: =IF(AY192=AZ192,1,0) -> 1
AC193: =AC192+1 -> 13 | AD193: CRSP,"03/29/2018" | AE193: Positive | AF193: Positive | AG193: Yes | AH193: 1 | AW193: =AW192+1 -> 13 | AX193: CRSP,"03/29/2018" | AY193: Positive | AZ193: Positive | BA193: Yes | BB193: 1
AC194: =AC193+1 -> 14 | AD194: SITM,"08/31/2020" | AE194: Positive | AF194: Positive | AG194: Yes | AH194: 1 | AW194: =AW193+1 -> 14 | AX194: SITM,"08/31/2020" | AY194: Positive | AZ194: Positive | BA194: Yes | BB194: 1
AC195: 15 | AD195: PDD,"05/29/2020" | AE195: Positive | AF195: Positive | AG195: Yes | AH195: 1 | AW195: =AW194+1 -> 15 | AX195: PDD,"05/29/2020" | AY195: Positive | AZ195: Positive | BA195: Yes | BB195: 1
AC196: 16 | AD196: BAND,"06/30/2020" | AE196: Positive | AF196: Positive | AG196: Yes | AH196: 1 | AW196: 16 | AX196: BAND,"06/30/2020" | AY196: Positive | AZ196: Positive | BA196: Yes | BB196: 1
AC197: 17 | AD197: SE,"06/30/2020" | AE197: Positive | AF197: Positive | AG197: No | AH197: 1 | AW197: 17 | AX197: SE,"06/30/2020" | AY197: Positive | AZ197: Positive | BA197: No | BB197: 1
AC198: 18 | AD198: NTLA,"12/31/2020" | AE198: Positive | AF198: Positive | AG198: No | AH198: 1 | AW198: 18 | AX198: NTLA,"12/31/2020" | AY198: Positive | AZ198: Positive | BA198: No | BB198: 1
AC199: 19 | AD199: MTDR,"03/31/2021" | AE199: Positive | AF199: Negative | AG199: No | AH199: 0 | AW199: 19 | AX199: MTDR,"03/31/2021" | AY199: Positive | AZ199: Positive | BA199: No | BB199: 1
AC200: 20 | AD200: DOCU,"05/29/2020" | AE200: Positive | AF200: Negative | AG200: No | AH200: 0 | AW200: 20 | AX200: DOCU,"05/29/2020" | AY200: Positive | AZ200: Positive | BA200: No | BB200: 1
AC201: 21 | AD201: SIG,"10/30/2020" | AE201: Positive | AF201: Negative | AG201: No | AH201: 0 | AW201: 21 | AX201: SIG,"10/30/2020" | AY201: Positive | AZ201: Positive | BA201: No | BB201: 1
AH202: =SUM(AH180:AH201) -> 14 | AI202: =SUM(AH180:AH185)+SUM(AH197:AH201) -> 4 | BB202: =SUM(BB180:BB201) -> 21 | BC202: =SUM(BB180:BB184)+SUM(BB197:BB201) -> 10
AF203: Total Accuracy | AI203: =AH202/AC201 -> 0.6666666667 | AZ203: Total Accuracy | BC203: =BB202/AW201 -> 1
AF204: Out of Set Accuracy | AI204: =AI202/(AC201/2) -> 0.380952381 | AZ204: Out of Set Accuracy | BC204: =BC202/(AW201/2) -> 0.9523809524
